{"text_format":"1","workbook":"xlsx","n_sheets":6,"sheets":["Inventario Doc","Hoja1","SECCION SERIES","Instrucciones","Equivalencias","Datos"],"not_rendered":{"charts":0,"images":6,"macros":1,"external_links":0,"defined_names":26,"comments":1,"pivot_tables":0},"unopened":[],"bounds":{"document_bytes":16777216,"sheet_cells":100000,"rows_first":2000,"rows_last":500,"rows_between":2000,"halvings":0,"cell_chars":16384,"cell_head_chars":4096},"cells_cut":0,"cells_raw":0,"read":"whole","date_system":"1900"}

{"sheet":"Inventario Doc","index":0,"n_rows":27,"n_cols":22,"rows_kept":27,"cut":false,"hidden":false,"merged":[[2,4,2,14],[3,4,3,14],[4,4,4,14],[9,2,9,3],[7,3,7,4],[8,2,8,3],[8,4,8,8],[9,4,9,8],[7,5,7,6],[7,7,7,8],[6,7,6,8],[13,5,14,5],[13,6,14,6],[13,7,14,7],[13,8,14,8],[13,9,14,9],[13,12,14,12],[13,20,14,20],[13,21,14,21],[26,1,26,21],[10,2,10,4],[11,2,11,4],[10,5,10,8],[11,5,11,8],[13,1,14,1],[13,2,14,2],[13,3,14,3],[13,14,13,15],[13,17,13,18],[12,17,12,18],[13,10,13,11],[13,4,14,4]]}
[]
[]
[]
[]
[]
[]
[null,null,null,null,null,null,null,"Versión . CADIDO 2025"]
[null,null," (1) Hoja No.:",null,null,"(2)Tipo de Archivo:"]
[null,null,"(3) Lugar y Fecha de Elaboración:"]
[null,null,"(4) Fondo:"]
[null,null,"(5) Unidad Académica o Dependencia Administrativa:"]
[null,null,"(6) Nombre del Area Productora:"]
[]
[null,"(7) No. Consecutivo","(8) No. De Caja","(9) No. Expediente","(10) Legajos","(11) Sección","(12) Serie ","(13) Código de Clasificación","(14) Nombre del Expediente","(15) Descripción","Periodo de Trámite (Fechas Extremas)",null,"(18) No. Total de Fojas","(19) Soporte(s) Documental(es)","Condiciones de Acceso (Preclasificación)",null,"(22) Valores Documentales Primarios","(23)Vigencia Documental (años)",null,"(24) Tradicion  Documental","(25) Ubicación ","(26) Observaciones"]
[null,null,null,null,null,null,null,null,null,null,"(16) Inicio/ Apertura","(17) Término/ Cierre",null,"Impreso (papel) / Digital:","(20) Público, Reservado, Confidencial","(21)Periodo de Reserva (años)","Admvo/ Legal/ Fiscal/ Contable","Archivo de Trámite","Archivo de Concentración","Copias /      originales"]
[null,1,null,null,null,null,null,"UAN/SECCION/SERIE/AÑO DE APERTURA"]
[null,2]
[null,3]
[null,4]
[null,5]
[null,6]
[null,7]
[null,8]
[null,9]
[null,10]
[]
[null,"El presente inventario consta de (27) ____ hojas y ampara la cantidad de (28)____ expedientes físicos de los años extremos (29)_____. Para expedientes con documentos electrónicos, ampara la cantidad de (30)____ (KB, MB, GB, TB) almacenados en (31)____."]

{"sheet":"Hoja1","index":1,"n_rows":9,"n_cols":3,"rows_kept":9,"cut":false,"hidden":false,"merged":[]}
[]
["Admvo",null,"Archivo de Tramite"]
["Admvo/ Legal",null,"Archivo de concentración"]
["Admvo/ Fiscal"]
["Admvo/ Contable"]
["Admvo/ Legal/ Fiscal"]
["Admvo/ Legal/ Contable"]
["Admvo/ Fiscal/ Contable"]
["Admvo/ Legal/ Fiscal/ Contable"]

{"sheet":"SECCION SERIES","index":2,"n_rows":551,"n_cols":39,"rows_kept":551,"cut":false,"hidden":true,"merged":[[486,2,487,2],[410,0,411,0],[487,1,488,1],[47,0,48,0]]}
["SECCION",null,"1C. Normativa Universitaria",null,"2C. Asuntos Jurídicos",null,"3C. Planeación, Presupuestación, Evaluación y Organización.",null,"4C Recursos Humanos. ",null,"5C Recursos Financieros ",null,"6C Recursos Materiales y Obra Pública. ",null,"7C Servicios Generales ",null,"8C Tecnologías y Servicios de la Información. ",null,"9C Comunicación y Enlace",null,"10C Evaluación, Control y Fiscalización",null,"11C Transparencia y acceso a la información pública",null,"12C Gestión de la Calidad Administrativa",null,"13C Gestión Documental y de Archivos",null,"1S. Docencia",null,"2S. Investigación.",null,"3S. Control Escolar",null,"4S. Difusión y Extensión Cultural",null,"5S. Gobierno",null,"6S. Sistema Bibliotecario"]
["_1C_Normativa_Universitaria",null,"1C.1 Proyectos en normativa universitaria",null,"2C.1 Programas y proyectos referente a asuntos juridícos",null,"3C1. Normas y políticas en materia de planeación, presupuestación, evaluacion y organización ",null,"4C.1 Programa de Desarrollo de Capacidades",null,"5C.1 Porgramas y proyectos en materia de Recursos Financieros y Contables ",null,"6C.1 Programa Anual de Obra",null,"7C.1 Programas y proyectos en materia de servicios generales",null,"8C.1 Programas y proyectos en materia de telecomunicaciones",null,"9C.1 Programas y proyectos de comunicación social",null,"10C.1 Control Interno",null,"11C.1 Solicitudes de acceso a la información pública",null,"12C.1 Programas de mejora administrativa",null,"13C.1 Programa Anual de Desarrollo Archivístico",null,"1S.1 Disposiciones en materia de Docencia",null,"2S.1 Proyectos de investigación",null,"3S1. Disposiciones generales en materia de administración educativa",null,"4S.1 Proyectos Culturales, artísticos de extensión del conocimiento y Responsabilidad Social ",null,"5S.1 Mensajes de autoridades",null,"6S.1 Adquisición de Libros"]
["_2C_Asuntos_Jurídicos",null,"  ",null,"2C.1.1 Plan de trabajo",null,"3C.2 Programas y proyectos de planeación",null,"4C.2 Programa de Desarrollo de Capacidades",null,"   ",null,"   ",null,"  ",null,"8C.2 Desarrollo e infraestructura de telecomunicaciones",null,"9C.1.1 Programas de Trabajo",null,"10C.2 Atención y Control de Contrataciones Públicas",null,"11C.1.1 Recurso de revisión de solicitudes de acceso",null,"   ",null,"13C.11 Informes anuales",null,"1S.2 Guía Docente",null,"2S.2 Programas y proyectos de apoyo a la investigación y al posgrado",null,"   ",null,null,null,"  ",null,"6S.1.1 Solicitud de Bibliografía"]
["_3C_Planeación._Presupuestación._Evaluación_y_Organización",null,"1C.2 Ordenamientos Jurídicos",null,"  ",null,"3C.3 Programas y proyectos de presupuestación",null,"4C.3 Clima laboral",null,"5C.2 Egresos ",null,"6C.2 Programas Anuales de Adquisiciones, Arrendamiento y Servicios",null,"7C.2 Servicios Básicos",null,"8C.3 Desarrollo e infraestructura de la página web de la Universidad de Guanajuato",null,"9C.1.2 Proyectos Institucionales",null,"10C.3 Evaluación al Desempeño Institucional",null,"  ",null,"12C.2 Gestión de Procesos Institucionales",null,"  ",null,"   ",null,"2S.3 Programas y proyectos de apoyo para la vinculación, difusión y divulgación de la investigación",null,"3S.2 Procesos de admisión",null,"4S.1.1 Universiada",null,"5S.2 Sesiones de Órganos Colegiados",null,"6S.1.2 Entrega - Recepción"]
["_4C_Recursos_Humanos",null,"     1C.2.1 Estatutos",null,"2C.2 Representaciones y poderes notariales",null,"3C.4 Monitoreo y seguimiento de programas y proyectos. ",null,"4C.4 Expediente de personal",null,"5C.2.1 Tranferencias",null,"6C.2.1 Adquisición, arrendamiento y servicios ",null,"  ",null,"8C.4 Desarrollo e infraestructura de redes",null,"9C.1.3 Seguimiento y evaluación de planes y programas de trabajo",null,"10C.4 Cumplimiento de Obligaciones Públicas",null,"11C.2 Solicitudes de derechos ARCO",null,"12C.2.1 Macroprocesos",null,"13C.2 Unidades de Correspondencia",null,"1S.3 Planes de estudio",null,"2S.4 Programas para el reconocimiento a la investigación y al posgrado",null,"3S.2.1 Cedulas de admisión",null,"4S.1.2 Feria del Libro",null,"5S.2.1 Dictamenes",null,"6S.1.3 Donaciones y canje"]
["_5C_Recursos_Financieros",null,"     1C.2.2 Códigos",null,"  ",null,"3C.5 Programas y proyectos de organización",null,"4C.5 Expedientes de registro y control de plazas ",null,"5C.2.2 Cheques",null,"  ",null,"7C.3 Servicios de seguridad y vigilancia ",null,"8C.5 Control de uso de licencias y usuarios de software y hardware",null,"  ",null,"10C.5 Revisión y Auditorías Internas",null,"11.C.2.1 Recurso de revisión de solicitudes de derechos ARCO",null,"12C.2.2 Manuales de Procesos",null,"13C.2.1 Inventarios Generales",null,"1S.3.1 Nivel Medio Superior",null,"2S.5 Programas externos de becas para posgrados",null,"3S.2.2 Resultados de admisión",null,"4S.1.3 Espiral",null,"5S.2.2 Informes",null,"   "]
["_6C_Recursos_Materiales_y_Obra_Pública ",null,"     1C.2.3 Reglamentos",null,"2C.3 Asistencia, asesoría y consultoría",null,"  ",null,"4C.6 Nómina Institucional",null,"5C.2.3 Fideicomisos",null,"6C.3 Expedientes Unitarios",null,"  ",null,"8C.6 Asesoría en tecnologías de información y comunicación",null,"9C.2 Actos y eventos institucionales",null,"10C.6 Atención y Control de Procedimiento de Fiscalización",null,"  ",null,"12C.2.3 Procesos SED-Pbr",null,"13C.2.2. Minutario",null,"1S.3.2 Superior",null,"2S.6 Información estadística de la producción científica",null,"   ",null,"4S.1.4 GUCCE",null,"5S.2.3 Resoluciones",null,"6S.2 Adquisición de Sistemas y Bases de Datos"]
["_7C_Servicios_Generales ",null,"     1C.2.4 Políticas",null,"2C.3.1 Normatividad Jurídica",null,"3C.6 Planes, programas o proyectos institucionales",null,"4C.7 Descuentos",null,"5C.2.4 Gastos por comprobar",null,"6C.3.1 Obra pública y servicios relacionada con la misma",null,"7C.4 Limpieza, higiene y fumigación",null,"8C.7 Programas y proyectos en materia de informática",null,"9C.2.1 Agenda institucional de eventos",null,"10C.7 Justicia Administrativa Universitaria",null,"11C.3 Portal de Transparencia",null,"12C.2.4 Oficios de liberación de procesos",null,"  ",null,"   ",null,null,null,"3S.3 Expediente del Estudiante",null,"4S.1.5 Ciencia es Cultura",null,"5S.2.4 Acuerdos",null,"6S.2.1 Selección de sistemas y bases de datos"]
["_8C_Tecnologías_y_Servicios_de_la_Información ",null,"     1C.2.5 Lineamientos",null,"2C.3.2 Análisis de iniciativas normativas",null,"3C.6.1 Plan de Desarrollo (PLADI)",null,"4C.8 Estímulos",null,"  ",null,null,null,"7C.4.1 Rutinarios",null,"8C.8 Desarrollo informático",null,"  ",null,"10C.8 Representaciones y Gestión para el Cumplimiento de las Atribuciones Públicas",null,"   ",null,"  ",null,"13C.3 Archivo de Concentración",null,"1S.4 Planes de trabajo",null,null,null,"3S.3.1 Expediente académico",null,"4S.1.6 OSUG",null,"5S.2.5 Actas",null,"   "]
["_9C_Comunicación_y_Enlace",null,"     1C.2.6 Manuales",null,"2C.3.3 Recomendaciones de organismos de Derechos Humanos",null,"3C.6.2 Planes, programas, y proyectos ",null,"4C.9 Procesos de Selección ",null,"5C.3 Estados Financieros",null,"6C.4 Ordenes de servicios",null,"7C.4.2 Especiales",null,"8C.9 Seguridad informática",null,"9C.3 Representaciones ",null,null,null,"11C.4 Cumplimiento a las obligaciones de Transparencia",null,"12C.3 Indicadores de desempeño, calidad y productividad",null,"13C.3.1 Transferencias primarias ",null,"1S.4.1 Informe de labores en materia de docencia",null,null,null,"3S.3.2 Altas y baja",null,"4S.1.7 FIC",null,"   ",null,"6S.3 Adquisición de infraestructura Académica"]
["_10C_Evaluación._Control_y_Fiscalización",null,"     C311C.2.7 Circulares ",null,"  ",null,"3C.6.3 Informes de Gestión",null,"4C.10 Prestaciones  Contractuales",null,"5C.3.1 Estados financieros mensuales",null,"  ",null,"  ",null,"8C.10 Análisis, desarrollo y programación de sistemas",null,"9C.3.1 Red de comunicación de COEPES",null,null,null,"11C.4.1 Verificaciones de Obligaciones de Transparencia",null,"  ",null,"13C.3.2 Consulta y préstamos ",null,"  ",null,null,null,"3S.3.3 Horarios",null,"4S.1.8 Grupos artísticos",null,"5S.3 Nombramientos y designaciones",null,"6S.3.1 Proyectos de infraestructura en biblioteca"]
["_11C_Transparencia_y_acceso_a_la_información_pública",null,"  ",null,"2C.4 Representación Legal",null,"3C.6.4 Programa Operativo Institucional (POA)",null,"4C.11 Jubilaciones",null,"5C.3.2 Estados financieros trimestrales",null,"6C.5 Registro y Control de Proveedores",null,"7C.5 Servicios de Transporte y movilidad",null,"8C.11 Automatización de procesos",null,"9c.3.2 Red Nacional de Gacetas",null,null,null,"11C.4.2 Denuncias por incumplimiento a las Obligaciones de Transparencia",null,"12C.4 Certificación de Calidad de Procesos y Servicios ",null,"   ",null,"1S.5 Curso especial",null,null,null,"3S.3.4 Kárdex",null,"  4S.1.9 Cineclub",null,"5S.4 Procesos de elección y procesos de designación",null,"  "]
["_12C_Gestión_de_la_Calidad_Administrativa",null,"1C.3 Acuerdos",null,"2C.4.1 Juicios en diversas materias donde la Universidad tiene un interés",null,"  ",null,"4C.12 Asuentos Laborales",null,"5C.3.3 Cuenta pública anual.",null,"6C.5.1 Padrón de proveedores",null,"7C.5.1 Solicitudes de transportes",null,"8C.12 Control y desarrollo del equipo informático",null,"9C.3.3 ANUIES",null,null,null,"   ",null,"12C.4.1 Programas y planes de auditoría",null,"13C.4 Archivo Histórico",null,"1S.6 Evaluación Docente",null,null,null,"   ",null,"4S.1.10 Otros",null,"5S.5 Recomendaciones",null,"6S.4 Cooperación Interinstitucional"]
["_13C_Gestión_Documental_y_de_Archivos",null,"     1C.3.1 Autoridades Unipersonales",null,"2C.4.2 Procedimientos Contencioso Administrativo",null,"3C.7 Información Estadística",null,"4C.13 Honorarios por servicios profesionales",null,"  ",null,"  ",null,"7C.5.2 Control de combustible",null,"8C.13 Desarrollo, actualización y mantenimiento del sitio web (soporte técnico, infraestructura, servidor, conectividad)",null,"9C.3.4 Consejo Ciudadano del Premio Nacional de Periodismo",null,null,null,"11C.5 Protección de Datos Personales",null,"12C.4.2 Expedientes de auditoras y auditores",null,"13C.4.1 Consultas",null,"1S.7 Programa Institucional de Tutorías",null,null,null,"3S.4 Evaluaciones y acreditación de alumnos/almunas",null,null,null,"5S.6 Procedimientos disciplinarios y defensa de derechos humanos ",null,"6S.4.1 Asociaciones Bibliotecarias y Redes"]
["  ",null,"     1C.3.2 Órganos Cólegiados ",null,"2C.4.3 Juicios de amparo. ",null,"3C.7.1 Sistemas de Información",null,"4C.14 Asociaciones Sindicales",null,"5C.4 Libros Contables",null,"6C.6 Bienes muebles",null,"7C.5.3 Registro de parque vehicular",null,"8C.14 Programas y proyectos referentes a servicios de información",null,"9C.3.5 Consejo Directivo TV4",null,null,null,"   ",null,"12C.4.3 Hallazgos y seguimientos",null,"13C.4.2 Inventarios",null,"1S.8 Expediente del profesorado",null,null,null,"3S.4.1 Exámenes",null,"4S.2 Agenda Cultural",null,"    ",null,"6S.4.2 Membresías"]
["_1S_Docencia",null,"     1C.3.3 Otros",null,"   ",null,"3C.7.2 Analisis, reportes e informes oficiales",null,"4C.15 Organigramas",null,"5C.5 Pólizas de diario",null,"6C.6.1 Resguardos",null,"  ",null,"8C.15 Administración y preservación de acervos digitales",null,"  ",null,null,null,"11C.6 Comité de Transparencia",null,"12C.4.4 Reportes",null,"13C.4.3 Difusión y divulgación",null,"1S.9 Programas y proyectos de apoyo al profesorado",null,null,null,"3S.4.2 Lista de asistencia",null,null,null,"5S.7 Premios, distinciones y reconocimientos ",null,"   "]
["_2S_Investigación",null,"  ",null,"2C.5 Instrumentos Jurídicos Consensuales",null,"  ",null,"   ",null,"5C.6 Auxiliar de Cuentas",null,"6C.6.2 Oficio de cambio de resguardante",null,"7C.6 Servicios de correspondencia y mensajería",null,"8C.16 Procesos técnicos en los servicios de información",null,"9C.4 Publicación y difusión de información ",null,null,null,"11C.6.1 Convocatoria",null,"12C.4.5 Propuestas económicas por casa certificadora",null,"  ",null,"   ",null,null,null,"3S.4.3 Recursamiento",null,"4S.3 Talleres Culturales, Artísticos, de extensión del conocimiento y responsabilidad social",null,"5S.7.1 Otorgados por la Universidad de Guanajuato",null,"6S.5 Biblioteca Digital"]
["_3S_Control_Escolar",null,"1C.4 Sesiones de trabajo",null,"2C.5.1 Contratos",null,"3C.8 Programación Presupuestal",null,"4C.16 Servicios de Salud",null,"5C.7 Conciliaciones Bancarias",null,"6C.6.3 Constancia de liberación de resguardo de bienes",null,"7C.6.1 Reporte de información de los paquetes entregado-recibidos",null,"8C.17 Acceso y reserva en los servicios de información",null,"9C.4.1 Página Institucional",null,null,null,"11C.6.2 Actas de Comité de Transparencia",null,"12C.4.6 Reportes de Hallazgos",null,"13C.5 Gestión Documental",null,"1S.10 Evaluación curricular",null,null,null,"  ",null,null,null,"5S.7.2 Recibidos por la Universidad de Guanajuato",null,"6S.5.1 Bases de Datos y Recursos de Información"]
["_4S_Difusión_y_Extensión_Cultural",null,"     1C.4.1 Actas y minutas de reuniones ordinarias y extraordinarias",null,"2C.5.2 Convenios",null,null,null,"4C.16.1 Afiliación y actualización de derechos",null,"5C.8 Afectaciones presupuestales",null,"6C.6.4 Vales de salida de bienes",null,"  ",null,"8C.18 Productos para La divulgación de servicios",null,"9C.4.2 Correo electrónico",null,null,null,"11C.6.3 Resoluciones del comité de Transparencia",null,"12C.4.7 Buzón Institucional de quejas, sugerencias, felicitaciones",null,"13C.5.1 Documentos internos de conocimiento.",null,"1S.10.1 Creación PE",null,null,null,"3S.5 Trámites Escolares",null,"4S.3.1 Danza",null,null,null,"6S.5.2 Sistema Integrado de Bibliotecas"]
["_5S_Gobierno",null,"  ",null,"   ",null,null,null,"4C.16.2 Promoción en materia de salud",null,"5C.9 Transferencias de presupuesto",null,"6C.6.5 Informe de bienes en desuso y/o inservibles",null,"7C.7 Mantenimiento, conservación e instalación de mobiliario",null,"8C.19 Servicios y productos en internet e intranet",null,"9C.4.3 Redes sociales",null,null,null,"11C.6.4 Acuerdos",null,"12C.4.8 Riesgos",null,"  ",null,"1S.10.2 Actualización elementos PE",null,null,null,"3S.5.1 Trámite de Titulo",null,"4S.3.2 Teatro",null,null,null,"6S.5.3 Sitio Web"]
["_6S_Sistema_Bibliotecario",null,null,null,"2C.6 Propiedad Intelecutal, Autoral e Industrial ",null,null,null,"4C.16.3 Servicio médico",null,"5C.10 Ampliaciones del presupuesto",null,"6C.6.6 Extravio y/o robo de bienes",null,"7C.8 Control y servicios en auditorios, salas, museos y áreas deportivas",null,"8C.20 Servicios de telefonía, telefonía celular y radiolocalización",null,"  ",null,null,null,null,null,"  ",null,"13C.6 Programas de mantenimiento de conservación.",null,"1.S.10.3 Suspensión o supresión PE",null,null,null,"3S.5.2 Listado de Credenciales expedidas",null,"4S.3.3 Música",null,null,null,"   "]
["   ",null,"       2C.1 Programas y proyectos referente a asuntos juridicos",null,"2C.6.1 Derechos de autor",null,null,null,"4C.16.4 Certificados de incapacidad",null,"5C.11 Compras Directas",null,"  ",null,"  ",null,null,null,"9C.5 Publicidad Institucional",null,null,null,null,null,"12C.5 Resultados de la encuesta de Satisfacción",null,"  ",null,"   ",null,null,null,"3S5.3 Certificado de Estudios",null,"4S.3.4 Otros",null,null,null,"6S.6 Formación de Usuarios"]
[null,null,"     2C.1.1 Plan de trabajo",null,"2C.6.2 Marcas",null,null,null,"4C.16.5 Deducibles",null,"5C.12 Contratos Bancarios",null,"6C.7 Bienes inmuebles",null,"7C.9 Programas y proyectos de Protección Civil",null,null,null,"9C.5.1 Campañas de Difusión",null,null,null,null,null,null,null,"13C.7 Grupo Interdisciplinario de Archivos",null,"1S.11 Ingreso y permanencia de Profesores",null,null,null,"3S.5.4 Legalización",null,null,null,null,null,"6S.6.1 Instrucción"]
[null,null,"  ",null,"2C.6.3 Patentes",null,null,null,"4C.16.6 Estsudios de Laboratorio",null,"5C.13 Inversiones en valores",null,"6C.7.1 Copias de escrituras",null,"7C.9.1 Capacitación y adiestramiento en materia de protección civil",null,null,null,"9C.5.2 Brief",null,null,null,null,null,null,null,"13C.7.1 Sesiones Ordinarias ",null,"1S.11.1 Profesor tiempo completo",null,null,null,"3S.5.5 Registro de Título para Cédula profesional",null,"4S.4 Publicaciones Universitarias",null,null,null,"  "]
["    ",null,"2C.2 Representaciones y poderes notariales",null,"   ",null,null,null,null,null,"5C.14 Fideicomisos",null,null,null,"7C.9.2 Dictamen de los estudios de análisis de riesgo",null,null,null,"9C.5.3 Antena Universitaria",null,null,null,null,null,null,null,"13C.7.2 Sesiones Extraordinarias",null,"1S.11.2 Profesor tiempo parcial",null,null,null,"  ",null,null,null,null,null,"6S.7 Inventarios"]
[null,null,"  ",null,"2C.7 Procesoso Penales",null,null,null,null,null,"5C.15 Catálogos contables",null,"  ",null,"7C.9.3 Asesorías en materia de protección civil",null,null,null,"  ",null,null,null,null,null,null,null,"  ",null,"  ",null,null,null,"3S.6 Trayectoria estudiantiles",null,"4S.5 Administración de Espacios Cutlurales",null,null,null,"6S.7.1 Descarte"]
[null,null,"2C.3 Asistencia, asesoría y consultoría",null,"2C.7.1 Carpeta de investigación",null,null,null,null,null,"5C.16 Convenios de Investigación y Vinculación",null,"6C.8 Adquisición de bienes, Enajenaciones, Arrendamientos y Contratación de Servicios",null,"  ",null,null,null,"9C.6 Proyectos Audivisuales ",null,null,null,null,null,null,null,"13C.8 Instrumentos de Control ",null,"1S.12 Reconocimiento Docente",null,null,null,"3S.7 Becas, apoyos y estímulos estudiantiles",null,"4S.5.1 Auditorio General de la UG",null,null,null,"6S.7.2 Inventario bibliográfico"]
[null,null,"     2C.3.1 Normativida Jurídica",null,"2C.7.2 Causa penal ",null,null,null,null,null,null,null,"6C.8.1 Adjudicación Directa Federal",null,"7C.10 Acopio de Residuos",null,null,null,"9C.6.1 Audios y vídeos",null,null,null,null,null,null,null,"13C.9 Archivo Electrónico. ",null,"1S.13 Actas de calificaciones",null,null,null,"  ",null,"4S.5.2 Teatro Principal",null,null,null,"6S.7.3 Inventario hemerográfico"]
[null,null,"     2C.3.2 Análisis de iniciativas normativas",null,"   ",null,null,null,null,null,null,null,"6C.8.2 Invitación a cuando menos tres proveedores Federal",null,null,null,null,null,"9C.6.2 Galería Fotografica",null,null,null,null,null,null,null,null,null,"1S.14 Acreditaciones de Programas Educativos",null,null,null,"3S.8 Servicio Social",null,"4S.5.3 Mesón de San Antonio",null,null,null,"6S.7.4 Inventario de material audiovisual"]
[null,null,"     2C.3.3 Recomendaciones de organismos de Derechos Humanos",null,"2C.8 Procedimientos Administrativos no Jurisdiccionales",null,null,null,null,null,null,null,"6C.8.3 Contrataciones por excepción de aplicación de Ley Federal",null,null,null,null,null,"9C.6.3 Textos",null,null,null,null,null,null,null,null,null,"1S.15 Plataformas de gestión del aprendizaje",null,null,null,"3S.8.1 Primer componente",null,"4S.5.4 Plazuela de San Roque",null,null,null,"6S.7.5 Recepción de adquisicion"]
[null,null,"  ",null,"2C.8.1 Cobro de Garantías a Instituciones Financieras",null,null,null,null,null,null,null,"6C.8.4 Licitación pública Federal",null,null,null,null,null,"   ",null,null,null,null,null,null,null,null,null,"1S.16 Programa de estimulos al desempeño del personal Docente",null,null,null,"3S.8.2 Segundo componente",null,"4S.5.5 Auditorio Euquerio Guerrero",null,null,null,"   "]
[null,null,"2C.4 Representación Legal",null,"2C.8.2 Procedimientos de recisión administrativa a proveedores y contratistas",null,null,null,null,null,null,null,"6C.8.5 Adjudicación directa Estatal",null,null,null,null,null,"9C.7 Productos Gráficos",null,null,null,null,null,null,null,null,null,"1S.17 Programas de apoyo para la capacitacicón de los profesores",null,null,null,"  ",null,"4S.5.6 Otros",null,null,null,"6S.8 Personal bibliotecario"]
[null,null,"     2C.4.1 Juicios en materia civil",null,"   ",null,null,null,null,null,null,null,"6C.8.6 Adjudicación directa con cotización de tres proveedores Estatal",null,null,null,null,null,"9C.8 Gestión de Espacios de Comunicación",null,null,null,null,null,null,null,null,null,"   ",null,null,null,"3S.9 Programa Institucional de Movilidad e Intercambio Académico",null,null,null,null,null,"6S.8.1 Capacitación"]
[null,null,"     2C.4.2 Procedimientos Contencioso Administrativo",null,"2C.9 Procedimientos y requerimientos no contenciosos",null,null,null,null,null,null,null,"6C.8.7 Contrataciones por excepción de aplicación de Ley Estatal",null,null,null,null,null,"9C.9 Atención a medios",null,null,null,null,null,null,null,null,null,"1S.18 Programas de Educación Continua",null,null,null,"  ",null,"4S.6 Museos y Galerías",null,null,null,"6S.8.2 Directorio de Personal Bibliotecario"]
[null,null,"     2C.4.3 Juicios de amparo. ",null,"2C.9.1 Pedimentos y requerimientos del Ministerio Público",null,null,null,null,null,null,null,"6C.8.8 Licitación restringida",null,null,null,null,null,"  ",null,null,null,null,null,null,null,null,null,"1S.18.1 Diplomados",null,null,null,"3S.10 Seguro y prevención de accidentes",null,"4S.6.1 Museos",null,null,null,"6S.8.3 Expedientes de Capacitación de Personal"]
[null,null,"  ",null,"2C.9.2 Pedimentos y requerimientos Jurisdiccionales",null,null,null,null,null,null,null,"6C.8.9 Licitación pública Estatal",null,null,null,null,null,"9C.10 Boletines informativos para medios",null,null,null,null,null,null,null,null,null,"1S.18.2 Cursos",null,null,null,"3S.10.1 Seguro contra accidentes escolares",null,"4S.6.2 Galerías "]
[null,null,"2C.5 Instrumentos Jurídicos Consensuales",null,"2C.9.3 Solicitud de peritajes",null,null,null,null,null,null,null,"  ",null,null,null,null,null,"9C.10.1 Corrección de boletines",null,null,null,null,null,null,null,null,null,"1S.18.3 Talleres",null,null,null,"3S.10.2 Programas de Prevención y cuidado",null,null,null,null,null,"6S.9 Procesos Técnicos"]
[null,null,"     2C.5.1 Contratos",null,"   ",null,null,null,null,null,null,null,"6C.9 Comités",null,null,null,null,null,"9C.10.2 Boletines publicados en el sitio web de la UG",null,null,null,null,null,null,null,null,null,null,null,null,null,null,null,null,null,null,null,"6S.9.1 Recepción"]
[null,null,"     2C.5.2 Convenios",null,"2C.10 Trámites migratorios y consulares ",null,null,null,null,null,null,null,"6C.9.1 Adquisiciones, enajenaciones, arrendamientos y contratación de servicios. ",null,null,null,null,null,null,null,null,null,null,null,null,null,null,null,null,null,null,null,"3S.11 Salud Estudiantil",null,null,null,null,null,"6S.9.2 Catalogación"]
[null,null,"  ",null,null,null,null,null,null,null,null,null,"6C.9.2 Obra pública de la UG",null,null,null,null,null,"9C.11 Comunicados Institucionales ",null,null,null,null,null,null,null,null,null,null,null,null,null,"3S.11.1 Orientación eduativa",null,null,null,null,null,"6S.9.3 Distribución"]
[null,null,"2C.6 Propiedad Intelecutal, Autoral e Industrial ",null,null,null,null,null,null,null,null,null,"  ",null,null,null,null,null,"9C.11.1 WEB",null,null,null,null,null,null,null,null,null,null,null,null,null,"3S.11.2 Orientación nutricional",null,null,null,null,null,"   "]
[null,null,"     2C.6.1 Derechos de autor",null,null,null,null,null,null,null,null,null,"6C.10 Almacenamiento, control y abastecimiento de bienes y materiales",null,null,null,null,null,"9C.11.2 Prensa",null,null,null,null,null,null,null,null,null,null,null,null,null,"3S.11.3 Orientación psicologica",null,null,null,null,null,"6S.10 Repositorio Institucional"]
[null,null,"     2C.6.2 Marcas",null,null,null,null,null,null,null,null,null,"  ",null,null,null,null,null,"9C.11.3 Redes Sociales",null,null,null,null,null,null,null,null,null,null,null,null,null,null,null,null,null,null,null,"6S.10.1 Autorizaciones de Publicación"]
[null,null,"     2C.6.3 Patentes",null,null,null,null,null,null,null,null,null,"6C.11 Bienes patrimonio cultural",null,null,null,null,null,"9C.11.4 Plan de medios",null,null,null,null,null,null,null,null,null,null,null,null,null,"3S.12 Programas y proyectos en materia de cultura física y deporte",null,null,null,null,null,"6S.10.2 Documentación de Sistema"]
[null,null,"  ",null,null,null,null,null,null,null,null,null,"6C.11.1 Cómite técnico de bienes de patrimonio cultural",null,null,null,null,null,"9C.11.5 Otros",null,null,null,null,null,null,null,null,null,null,null,null,null,null,null,null,null,null,null,"6S.10.3 Documentos"]
[null,null,"2C.7 Procesoso Penales",null,null,null,null,null,null,null,null,null,"6C.11.2 Solicitudes de préstamo y resguardo",null,null,null,null,null,null,null,null,null,null,null,null,null,null,null,null,null,null,null,"3S.13 Egresados",null,null,null,null,null,"6S.10.4 Interoperabilidad"]
[null,null,"     2C.7.1 Carpeta de investigación",null,null,null,null,null,null,null,null,null,"6C.11.3 Solicitudes de arrendamiento",null,null,null,null,null,"9C.12 Inserciones y anuncios en medios",null,null,null,null,null,null,null,null,null,null,null,null,null,null,null,null,null,null,null,"6S.10.5 Manuales de Operación"]
[null,null,"     2C.7.2 Causa penal ",null,null,null,null,null,null,null,null,null,"6C.11.4 Programas y acciones de conservación",null,null,null,null,null,null,null,null,null,null,null,null,null,null,null,null,null,null,null,"3S.13.1 Padrón de Egresados",null,null,null,null,null,"6S.10.6 Poblamiento"]
[null,null,"  ",null,null,null,null,null,null,null,null,null,"6C.11.5 Aseguramiento de bienes patrimonio cultural",null,null,null,null,null,"9C.13 Memoría Universitaria",null,null,null,null,null,null,null,null,null,null,null,null,null,"3S.13.2 Bolsa de trabajo",null,null,null,null,null,"    "]
[null,null,"2C.8 Procedimientos Administrativos no Jurisdiccionales",null,null,null,null,null,null,null,null,null,null,null,null,null,null,null,"9C.13.1 Memoria Universitaria",null,null,null,null,null,null,null,null,null,null,null,null,null,null,null,null,null,null,null,"6S.11 Servicios bibliotecarios"]
[null,null,"     2C.8.1 Cobro de Garantías a Instituciones Financieras",null,null,null,null,null,null,null,null,null,null,null,null,null,null,null,"9C.13.2 Sintesis Digital",null,null,null,null,null,null,null,null,null,null,null,null,null,null,null,null,null,null,null,"6S.11.1 Acreditación de No Adeudo y Entrega de Trabajo de Titulación"]
[null,null,"     2C.8.2 Procedimientos de recisión administrativa a  proveedores y contratistas",null,null,null,null,null,null,null,null,null,null,null,null,null,null,null,null,null,null,null,null,null,null,null,null,null,null,null,null,null,null,null,null,null,null,null,"6S.11.2 Adeudos y Sanciones de Préstamos"]
[null,null,"   ",null,null,null,null,null,null,null,null,null,null,null,null,null,null,null,"9C.14 Desarrollo, actualización y mantenimiento de contenidos para el sitio web ",null,null,null,null,null,null,null,null,null,null,null,null,null,null,null,null,null,null,null,"6S.11.3 Colección de Reserva"]
[null,null,"2C.9 Procedimientos y requerimientos no contenciosos",null,null,null,null,null,null,null,null,null,null,null,null,null,null,null,null,null,null,null,null,null,null,null,null,null,null,null,null,null,null,null,null,null,null,null,"6S.11.4 Consulta y Referencia"]
[null,null,"     2C.9.1 Pedimentos y requerimientos del Ministerio Público",null,null,null,null,null,null,null,null,null,null,null,null,null,null,null,"9C.15 Vinculación y Colaboración Institucional",null,null,null,null,null,null,null,null,null,null,null,null,null,null,null,null,null,null,null,"6S.11.5 Inducción"]
[null,null,"     2C.9.2 Pedimentos y requerimientos Jurisdiccionales",null,null,null,null,null,null,null,null,null,null,null,null,null,null,null,"9C.15.1 Red de enlaces de comunicación campus y CNMS",null,null,null,null,null,null,null,null,null,null,null,null,null,null,null,null,null,null,null,"6S.11.6 Préstamo de cubículos y salas"]
[null,null,"     2C.9.3 Solicitud de peritajes",null,null,null,null,null,null,null,null,null,null,null,null,null,null,null,"9C.15.2 Red de enlaces de comunicación campus COEPES",null,null,null,null,null,null,null,null,null,null,null,null,null,null,null,null,null,null,null,"6S.11.7 Préstamo de Laptops"]
[null,null,"   ",null,null,null,null,null,null,null,null,null,null,null,null,null,null,null,null,null,null,null,null,null,null,null,null,null,null,null,null,null,null,null,null,null,null,null,"6S.11.8 Préstamo en Sala"]
[null,null,"2C.10 Trámites migratorios y consulares ",null,null,null,null,null,null,null,null,null,null,null,null,null,null,null,null,null,null,null,null,null,null,null,null,null,null,null,null,null,null,null,null,null,null,null,"6S.11.9 Préstamo Externo"]
[null,null,null,null,null,null,null,null,null,null,null,null,null,null,null,null,null,null,null,null,null,null,null,null,null,null,null,null,null,null,null,null,null,null,null,null,null,null,"6S.11.10 Préstamo Interbibliotecario"]
[null,null,"3C1. Normas y políticas en materia de planeación, presupuestación, evaluacion y organización ",null,null,null,null,null,null,null,null,null,null,null,null,null,null,null,null,null,null,null,null,null,null,null,null,null,null,null,null,null,null,null,null,null,null,null,"6S.11.11 Recuperación de Documentos"]
[null,null,"3C.2 Programas y proyectos de planeación",null,null,null,null,null,null,null,null,null,null,null,null,null,null,null,null,null,null,null,null,null,null,null,null,null,null,null,null,null,null,null,null,null,null,null,"6S.11.12 Registro de Visitantes"]
[null,null,"3C.3 Programas y proyectos de presupuestación",null,null,null,null,null,null,null,null,null,null,null,null,null,null,null,null,null,null,null,null,null,null,null,null,null,null,null,null,null,null,null,null,null,null,null,"6S.11.13 Visita Guiada "]
[null,null,"3C.4 Monitoreo y seguimiento de programas y proyectos. "]
[null,null,"3C.5 Programas y proyectos de organización"]
[]
[null,null,"3C.6 Planes, programas o proyectos institucionales"]
[null,null,"3C.6.1 Plan de Desarrollo (PLADI)"]
[null,null,"3C.6.2 Planes, programas, y proyectos "]
[null,null,"3C.6.3 Informes de Gestión"]
[null,null,"3C.6.4 Programa Operativo Institucional (POA)"]
[]
[null,null,"3C.7 Información Estadística"]
[null,null,"3C.7.1 Sistemas de Información"]
[null,null,"3C.7.2 Analisis, reportes e informes oficiales"]
[]
[null,null,"3C.8 Programación Presupuestal"]
[]
[null,null,"4C.1 Programa de Desarrollo de Capacidades"]
[null,null,"4C.2 Programa de Desarrollo de Capacidades"]
[null,null,"4C.3 Clima laboral"]
[null,null,"4C.4 Expediente de personal"]
[null,null,"4C.5 Expedientes de registro y control de plazas "]
[null,null,"4C.6 Nómina Institucional"]
[null,null,"4C.7 Descuentos"]
[null,null,"4C.8 Estímulos"]
[null,null,"4C.9 Procesos de Selección "]
[null,null,"4C.10 Prestaciones  Contractuales"]
[null,null,"4C.11 Jubilaciones"]
[null,null,"4C.12 Asuentos Laborales"]
[null,null,"4C.13 Honorarios por servicios profesionales"]
[null,null,"4C.14 Asociaciones Sindicales"]
[null,null,"4C.15 Organigramas"]
[]
[null,null,"4C.16 Servicios de Salud"]
[null,null,"4C.16.1 Afiliación y actualización de derechos"]
[null,null,"4C.16.2 Promoción en materia de salud"]
[null,null,"4C.16.3 Servicio medico"]
[null,null,"4C.16.4 Certificados de incapacidad"]
[null,null,"4C.16.5 Deducibles"]
[]
[null,null,"5C.1 Porgramas y proyectos en materia de Recursos Financieros y Contables "]
[]
[null,null,"5c.2 Egresos "]
[null,null,"5C.2.1 Tranferencias"]
[null,null,"5C.2.2 Cheques"]
[null,null,"5C.2.3 Fideicomisos"]
[null,null,"5C.2.4 Gastos por comprobar"]
[]
[null,null,"5C.3 Estados Financieros"]
[null,null,"5C.3.1 Estados financieros mensuales"]
[null,null,"5C.3.2 Estados financieros trimestrales"]
[null,null,"5C.3.3 Cuenta pública anual."]
[]
[null,null,"5C.4 Libros Contables"]
[null,null,"5C.5 Pólizas de diario"]
[null,null,"5C.6 Auxiliar de Cuentas"]
[null,null,"5C.7 Conciliaciones Bancarias"]
[null,null,"5C.8 Afectaciones presupuestales"]
[null,null,"5C.9 Transferencias de presupuesto"]
[null,null,"5C.10 Ampliaciones del presupuesto"]
[null,null,"5C.11 Compras Directas"]
[null,null,"5C.12 Contratos Bancarios"]
[null,null,"5C.13 Inversiones en valores"]
[null,null,"5C.14 Fideicomisos"]
[null,null,"5C.15 Catálogos contables"]
[null,null,"5C.16 Convenios de Investigación y Vinculación"]
[]
[null,null,"6C.1 Programa Anual de Obra"]
[]
[null,null,"6C.2 Programas Anuales de Adquisiciones, Arrendamiento y Servicios"]
[null,null,"6C.2.1 Adquisición, arrendamiento y servicios "]
[]
[null,null,"6C.3 Expedientes Unitarios"]
[null,null,"6C.3.1 Obra pública y servicios relacionada con la misma"]
[]
[null,null,"6C.4 Ordenes de servicios"]
[]
[null,null,"6C.5 Registro y Control de Proveedores"]
[null,null,"6C.5.1 Padrón de proveedores"]
[]
[null,null,"6C.6 Bienes muebles"]
[null,null,"6C.6.1 Resguardos"]
[null,null,"6C.6.2 Oficio de cambio de resguardante"]
[null,null,"6C.6.3 Constancia de liberación de resguardo de bienes"]
[null,null,"6C.6.4 Vales de salida de bienes"]
[null,null,"6C.6.5 Informe de bienes en desuso y/o inservibles"]
[null,null,"6C.6.6 Extravio y/o robo de bienes"]
[]
[null,null,"6C.7 Bienes inmuebles"]
[null,null,"6C.7.1 Copias de escrituras"]
[null,null,"6C.8 Adquisición de bienes, Enajenaciones, Arrendamientos y Contratación de Servicios"]
[]
[null,null,"6C.8 Adquisición de bienes, Enajenaciones, Arrendamientos y Contratación de Servicios"]
[null,null,"6C.8.1 Adjudicación Directa Federal"]
[null,null,"6C.8.2 Invitación a cuando menos tres proveedores Federal"]
[null,null,"6C.8.3 Contrataciones por excepción de aplicación de Ley Federal"]
[null,null,"6C.8.4 Licitación pública Federal"]
[null,null,"6C.8.5 Adjudicación directa Estatal"]
[null,null,"6C.8.6 Adjudicación directa con cotización de tres proveedores Estatal"]
[null,null,"6C.8.7 Contrataciones por excepción de aplicación de Ley Estatal"]
[null,null,"6C.8.8 Licitación restringida"]
[null,null,"6C.8.9 Licitación pública Estatal"]
[]
[null,null,"6C.9 Cómites"]
[null,null,"6C.9.1 Adquisiciones, enajenaciones, arrendamientos y contratación de servicios. "]
[null,null,"6C.9.2 Obra pública de la UG"]
[]
[null,null,"6C.10 Almacenamiento, control y abastecimiento de bienes y materiales"]
[]
[null,null,"6C.11 Bienes patrimonio cultural"]
[null,null,"6C.11.1 Cómite técnico de bienes de patrimonio cultural"]
[null,null,"6C.11.2 Solicitudes de préstamo y resguardo"]
[null,null,"6C.11.3 Solicitudes de arrendamiento"]
[null,null,"6C.11.4 Programas y acciones de conservación"]
[null,null,"6C.11.5 Aseguramiento de bienes patrimonio cultural"]
[]
[null,null,"7C.1 Programas y proyectos en materia de servicios generales"]
[]
[null,null,"7C.2 Servicios Básicos"]
[]
[null,null,"7C.3 Servicios de seguridad y vigilancia "]
[]
[null,null,"7C.4 Limpieza, higiene y fumigación"]
[null,null,"7C.4.1 Rutinarios"]
[null,null,"7C.4.2 Especiales"]
[]
[null,null,"7C.5 Servicios de Transporte y movilidad"]
[null,null,"7C.5.1 Solicitudes de transportes"]
[null,null,"7C.5.2 Control de combustible"]
[null,null,"7C.5.3 Registro de parque vehicular"]
[]
[null,null,"7C.6 Servicios de correspondencia y mensajería"]
[null,null,"7C.6.1 Reporte de información de los paquetes entregado-recibidos"]
[]
[null,null,"7C.7 Mantenimiento, conservación e instalación de mobiliario"]
[null,null,"7C.8 Control y servicios en auditorios, salas, museos y áreas deportivas"]
[]
[null,null,"7C.9 Programas y proyectos de Protección Civil"]
[null,null,"7C.9.1 Capacitación y adiestramiento en materia de protección civil"]
[null,null,"7C.9.2 Dictamen de los estudios de análisis de riesgo"]
[null,null,"7C.9.3 Asesorías en materia de protección civil"]
[]
[null,null,"7C.10 Acopio de Residuos"]
[]
[null,null,"8C.1 Programas y proyectos en materia de telecomunicaciones"]
[null,null,"8C.2 Desarrollo e infraestructura de telecomunicaciones"]
[null,null,"8C.3 Desarrollo e infraestructura de la página web de la Universidad de Guanajuato"]
[null,null,"8C.4 Desarrollo e infraestructura de redes"]
[null,null,"8C.5 Control de uso de licencias y usuarios de software y hardware"]
[null,null,"8C.6 Asesoría en tecnologías de información y comunicación"]
[null,null,"8C.7 Programas y proyectos en materia de informática"]
[null,null,"8C.8 Desarrollo informático"]
[null,null,"8C.9 Seguridad informática"]
[null,null,"8C.10 Análisis, desarrollo y programación de sistemas"]
[null,null,"8C.11 Automatización de procesos"]
[null,null,"8C.12 Control y desarrollo del equipo informático"]
[null,null,"8C.13 Desarrollo, actualización y mantenimiento del sitio web (soporte técnico, infraestructura, servidor, conectividad)"]
[null,null,"8C.14 Programas y proyectos referentes a servicios de información"]
[null,null,"8C.15 Administración y preservación de acervos digitales"]
[null,null,"8C.16 Procesos técnicos en los servicios de información"]
[null,null,"8C.17 Acceso y reserva en los servicios de información"]
[null,null,"8C.18 Productos para La divulgación de servicios"]
[null,null,"8C.19 Servicios y productos en internet e intranet"]
[null,null,"8C.20 Servicios de telefonía, telefonía celular y radiolocalización"]
[]
[null,null,"9C.1 Programas y proyectos de comunicación social"]
[null,null,"9C.1.1 Programas de Trabajo"]
[null,null,"9C.1.2 Proyectos Institucionales"]
[null,null,"9C.1.3 Seguimiento y evaluacion de planes y programas de trabajo"]
[]
[null,null,"9C.2 Actos y eventos institucionales"]
[null,null,"9C.2.1 Agenda institucional de eventos"]
[]
[null,null,"9C.3 Representaciones "]
[null,null,"9C.3.1 Red de comunicación de COEPES"]
[null,null,"9c.3.2 Red Nacional de Gacetas"]
[null,null,"9C.3.3 ANUIES"]
[null,null,"9C.3.4 Consejo Ciudadano del Premio Nacional de Periodismo"]
[null,null,"9C.3.5 Consejo Directivo TV4"]
[]
[null,null,"9C.4 Públicación y difusión de información "]
[null,null,"9C.4.1 Página Institucional"]
[null,null,"9C.4.2 Correo electrónico"]
[null,null,"9C.4.3 Redes sociales"]
[]
[null,null,"9c.5 Publicidad Institucional"]
[null,null,"9C.5.1 Campañas de Difusión"]
[null,null,"9C.5.2 Brief"]
[null,null,"9C.5.3 Antena Universitaria"]
[]
[null,null,"9C.6 Proyectos Audivisuales "]
[null,null,"9C.6.1 Audios y vídeos"]
[null,null,"9C.6.2 Galería Fotografica"]
[null,null,"9C.6.3 Textos"]
[]
[null,null,"9C.7 Productos Gráficos"]
[null,null,"9C.8 Gestión de Espacios de Comunicación"]
[null,null,"9C.9 Atención a medios"]
[]
[null,null,"9C.10 Boletines informativos para medios"]
[null,null,"9C.10.1 Corrección de boletines"]
[null,null,"9C.10.2 Boletines publicados en el sitio web de la UG"]
[]
[null,null,"9C.11 Comunicados Institucionales "]
[null,null,"9C.11.1 WEB"]
[null,null,"9C.11.2 Prensa"]
[null,null,"9C.11.3 Redes Sociales"]
[null,null,"9C.11.4 Plan de medios"]
[null,null,"9C.11.5 Otros"]
[]
[null,null,"9C.12 Inserciones y anuncios en medios"]
[]
[null,null,"9C.13 Memoría Universitaria"]
[null,null,"9C.13.1 Memoria Universitaria"]
[null,null,"9C.13.2 Sintesis Digital"]
[]
[null,null,"9C.14 Desarrollo, actualización y mantenimiento de contenidos para el sitio web "]
[]
[null,null,"9C.15 Vinculación y Colaboración Institucional"]
[null,null,"9C.15.1 Red de enlaces de comunicación campus y CNMS"]
[null,null,"9C.15.2 Red de enlaces de comunicación campus COEPES"]
[]
[null,null,"10C.1 Control Interno"]
[null,null,"10C.2 Atención y Control de Contrataciones Públicas"]
[null,null,"10C.3 Evaluación al Desempeño Institucional"]
[null,null,"10C.4 Cumplimiento de Obligaciones Públicas"]
[null,null,"10C.5 Revisión y Auditorías Internas"]
[null,null,"10C.6 Atención y Control de Procedimiento de Fiscalización"]
[null,null,"10C.7 Justicia Administrativa Universitaria"]
[null,null,"10C.8 Representaciones y Gestión para el Cumplimiento de las Atribuciones Públicas"]
[]
[null,null,"11C.1 Solicitudes de acceso a la información pública"]
[null,null,"11C.1.1 Recurso de revisión de solicitudes de acceso"]
[]
[null,null,"11C.2 Solicitudes de derechos ARCO"]
[null,null,"11.C.2.1 Recurso de revisión de solicitudes de derechos ARCO"]
[]
[null,null,"11C.3 Portal de Transparencia"]
[]
[null,null,"11C.4 Cumplimiento a las obligaciones de Transparencia"]
[null,null,"11C.4.1 Verificaciones de Obligaciones de Transparencia"]
[null,null,"11C.4.2 Denuncias por incumplimiento a las Obligaciones de Transparencia"]
[]
[null,null,"11C.5 Protección de Datos Personales"]
[]
[null,null,"11C.6 Cómite de Transparencia"]
[null,null,"11C.6.1 Convoctaria"]
[null,null,"11C.6.2 Actas de Cómite de Transparencia"]
[null,null,"11C.6.3 Resoluciones del cómite de Transparencia"]
[null,null,"11C.6.4 Acuerdos"]
[]
[null,null,"12C.1 Programas de mejora administrativa"]
[]
[null,null,"12C.2 Gestión de Procesos Institucionales"]
[null,null,"12C.2.1 Macroprocesos"]
[null,null,"12C.2.2 Manuales de Procesos"]
[null,null,"12C.2.3 Procesos SED-Pbr"]
[null,null,"12C.2.4 Oficios de liberación de procesos"]
[]
[null,null,"12C.3 Indicadores de desempeño, calidad y productividad"]
[]
[null,null,"12C.4 Certificación de Calidad de Procesos y Servicios "]
[null,null,"12C.4.1 Programas y planes de auditoría"]
[null,null,"12C.4.2 Expedientes de auditoras y auditores"]
[null,null,"12C.4.3 Hallazgos y seguimientos"]
[null,null,"12C.4.4 Reportes"]
[null,null,"12C.4.5 Propuestas economicas por casa certificadora"]
[null,null,"12C.4.6 Reportes de Hallazgos"]
[null,null,"12C.4.7 Buzón Institucional de quejas, sugerencias, felicitaciones"]
[null,null,"12C.4.8 Riesgos"]
[]
[null,null,"12C.5 Resultados de la encuesta de Satisfacción"]
[]
[null,null,"13C.1 Programa Anual de Desarrollo Archivístico"]
[null,null,"13C.11 Informes anuales"]
[]
[null,null,"13C.2 Unidades de Correspondencia"]
[null,null,"13C.2.1 Inventarios Generales"]
[null,null,"13C.2.2. Minutario"]
[]
[null,null,"13C.3 Archivo de Concentración"]
[null,null,"13C.3.1 Transferencias primarias "]
[null,null,"13C.3.2 Consulta y préstamos "]
[]
[null,null,"13C.4 Archivo Histórico"]
[null,null,"13C.4.1 Consultas"]
[null,null,"13C.4.2 Inventarios"]
[null,null,"13C.4.3 Difusión y divulgación"]
[]
[null,null,"13C.5 Gestión Documental"]
[null,null,"13C.5.1 Documentos internos de conocimiento."]
[]
[null,null,"13C.6 Programas de mantenimiento de conservación."]
[]
[null,null,"13C.7 Grupo Interdisciplinario de Archivos"]
[null,null,"13C.7.1 Sesiones Ordinarias "]
[null,null,"13C.7.2 Sesiones Extraordinarias"]
[]
[null,null,"13C.8 Instrumentos de Control "]
[null,null,"13C.9 Archivo Electrónico. "]
[]
[null,null,"1S.1 Disposiciones en materia de Docencia"]
[null,null,"1S.2 Guía Docente"]
[]
[null,null,"1S.3 Planes de estudio"]
[null,null,"1S.3.1 Nivel Medio Superior"]
[null,null,"1S.3.2 Superior"]
[]
[null,null,"1S.4 Planes de trabajo"]
[null,null,"1S.4.1 Informe de labores en materia de docencia"]
[]
[null,null,"1S.5 Curso especial"]
[null,null,"1S.6 Evaluación Docente"]
[null,null,"1S.7 Programa Institucional de Tutorías"]
[null,null,"1S.8 Expediente del profesorado"]
[null,null,"1S.9 Programas y proyectos de apoyo al profesorado"]
[]
[null,null,"1S.10 Evaluación curricular"]
[null,null,"1S.10.1 Creación PE"]
[null,null,"1S.10.2 Actualización elementos PE"]
[null,null,"1.S.10.3 Suspensión o supresión PE"]
[]
[null,null,"1S.11 Ingreso y permanencia de Profesores"]
[null,null,"1S.11.1 Profesor tiempo completo"]
[null,null,"1S.11.2 Profesor tiempo parcial"]
[]
[null,null,"1S.12 Reconocimiento Docente"]
[null,null,"1S.13 Actas de calificaciones"]
[null,null,"1S.14 Acreditaciones de Programas Educativos"]
[null,null,"1S.15 Plataformas de gestión del aprendizaje"]
[null,null,"1S.16 Programa de estimulos al desempeño del personal Docente"]
[null,null,"1S.17 Programas de apoyo para la capacitacicón de los profesores"]
[]
[null,null,"1S.18 Programas de Educación Continua"]
[null,null,"1S.18.1 Diplomados"]
[null,null,"1S.18.2 Cursos"]
[null,null,"1S.18.3 Talleres"]
[]
[null,null,"2S.1 Proyectos de investigación"]
[null,null,"2S.2 Programas y proyectos de apoyo a la investigación y al posgrado"]
[null,null,"2S.3 Programas y proyectos de apoyo para la vinculación, difusión y divulgación de la investigación"]
[null,null,"2S.4 Programas para el reconocimiento a la investigación y al posgrado"]
[null,null,"2S.5 Programas externos de becas para posgrados"]
[null,null,"2S.6 Información estadística de la producción científica"]
[]
[null,null,"3S1. Disposiciones generales en materia de administración educativa"]
[]
[null,null,"3S.2 Procesos de admisión"]
[null,null,"3S.2.1 Cedulas de admisión"]
[null,null,"3S.2.2 Resultados de admisión"]
[]
[null,null,"3S.3 Expediente del Estudiante"]
[null,null,"3S.3.1 Expediente académico"]
[null,null,"3S.3.2 Altas y baja"]
[null,null,"3S.3.3 Horarios"]
[null,null,"3S.3.4 Kárdex"]
[]
[null,null,"3S.4 Evaluaciones y acreditación de alumnos/almunas"]
[null,null,"3S.4.1 Exámenes"]
["3S.4",null,"3S.4.2 Lista de asistencia"]
[null,null,"3S.4.3 Recursamiento"]
[]
[null,null,"3S.5 Trámites Escolares"]
[null,null,"3S.5.1 Trámite de Titulo"]
["3S.5",null,"3S.5.2 Listado de Credenciales expedidas"]
[null,null,"3S5.3 Certificado de Estudios"]
[null,null,"3S.5.4 Legalizacion"]
[null,null,"3S.5.5 Registro de Título para Cédula profesional"]
[]
[null,null,"3S.6 Trayectoria estudiantiles"]
["3S.6",null,"3S.7 Becas, apoyos y estímulos estudiantiles"]
["3S.7"]
[null,null,"3S.8 Servicio Social"]
[null,null,"3S.8.1 Primer componente"]
["3S.10",null,"3S.8.2 Segundo componente"]
[]
[null,null,"3S.9 Programa Institucional de Movilidad e Intercambio Académico"]
["3S.11"]
[null,null,"3S.10 Seguro y prevención de accidentes"]
[null,null,"3S.10.1 Seguro contra accidentes escolares"]
["3S.10",null,"3S.10.2 Programas de Prevención y cuidado"]
[]
[null,null,"3S.11 Salud Estudiantil"]
[null,null,"3S.11.1 Orientación educativa"]
["3S.11",null,"3S.11.2 Orientación nutricional"]
[null,null,"3S.11.3 Orientación psicológica"]
[]
[null,null,"3S.12 Egresados"]
[null,null,"3S.12.1 Padrón de Egresados"]
["3S.12",null,"3S.12.2 Bolsa de trabajo"]
[]
[null,null,"4S.1 Programas y proyectos en materia de difusión y extensión de la cultura"]
["4S.1",null,"4S.2 Agenda Cultural"]
["4S.2",null,"4S.3 Programas en materia de cultura física y deporte "]
["4S.3",null,"4S.4 Orquesta Sinfónica de la Universidad de Guanajuato"]
["4S.4"]
[null,null,"4S.5 Talleres y grupos artísticos "]
[null,null,"4S.5.1 Danza"]
["4S.5",null,"4S.5.2Teatro"]
[null,null,"4S.5.3 Música"]
[null,null,"4S.5.4 Otros"]
[]
[null,null,"4S.6 Programas y proyectos en materia de servicios e Innovación "]
["4S.6",null,"4S.7 Programa editorial"]
["4S.7",null,"4S.8 Programas de extensión artística y cultural"]
["4S.8",null,"4S.9 Cineclub"]
["4S.9",null,"4S.10 Museos y Galerías de Arte"]
["4S.10",null,"4s.11 Administración de espacios culturales"]
["4s.11"]
[null,null,"5S.1 Mensajes de autoridades"]
["5S.1"]
[null,null,"5S.2 Sesiones de Órganos Colegiados"]
[null,null,"5S.2.1 Dictamenes"]
["5S.2",null,"5S.2.2 Informes"]
[null,null,"5S.2.3 Resoluciones"]
[null,null,"5S.2.4 Acuerdos"]
[null,null,"5S.2.5 Actas"]
[]
[null,null,"5S.3 Nombramientos y designaciones"]
["5S.3",null,"5S.4 Procesos de elección y procesos de designación"]
["5S.4",null,"5S.5 Recomendaciones"]
["5S.5",null,"5S.6 Procedimientos disciplinarios y defensa de derechos humanos "]
["5S.6"]
[null,null,"5S.7 Premios, distinciones y reconocimientos "]
[null,null,"5S.7.1 Otorgados por la Universidad de Guanajuato"]
["5S.7",null,"5S.7.2 Recibidos por la Universidad de Guanajuato"]
[]
[]
[null,null,"6S.1 Adquisición de Libros"]
[null,null,"6S.1.1 Solicitud de Bibliografía"]
["6S.1",null,"6S.1.2 Entrega - Recepción"]
[null,null,"6S.1.3 Donaciones y canje"]
[]
[null,null,"6S.2 Adquisición de Sistemas y Bases de Datos"]
[null,null,"6S.2.1 Selección de sistemas y bases de datos"]
["6S.2"]
[null,null,"6S.3 Adquisición de infraestructura Académica"]
[null,null,"6S.3.1 Proyectos de infraestructura en biblioteca"]
["6S.3"]
[null,null,"6S.4 Cooperación Interinstitucional"]
[null,null,"6S.4.1 Asociaciones Bibliotecarias y Redes"]
["6S.4",null,"6S.4.2 Membresías"]
[]
[null,null,"6S.5 Biblioteca Digital"]
[null,null,"6S.5.1 Bases de Datos y Recursos de Información"]
["6S.5",null,"6S.5.2 Sistema Integrado de Bibliotecas"]
[null,null,"6S.5.3 Sitio Web"]
[]
[null,null,"6S.6 Formación de Usuarios"]
[null,null,"6S.6.1 Instrucción"]
["6S.6"]
[null,null,"6S.7 Inventarios"]
[null,null,"6S.7.1 Descarte"]
["6S.7",null,"6S.7.2 Inventario bibliográfico"]
[null,null,"6S.7.3 Inventario hemerográfico"]
[null,null,"6S.7.4 Inventario de material audiovisual"]
[null,null,"6S.7.5 Recepción de adquisicion"]
[]
[null,null,"6S.8 Personal bibliotecario"]
[null,null,"6S.8.1 Capacitación"]
["6S.8",null,"6S.8.2 Directorio de Personal Bibliotecario"]
[null,null,"6S.8.3 Expedientes de Capacitación de Personal"]
[]
[null,null,"6S.9 Procesos Técnicos"]
[null,null,"6S.9.1 Recepción"]
["6S.9",null,"6S.9.2 Catalogación"]
[null,null,"6S.9.3 Distribución"]
[]
[null,null,"6S.10 Repositorio Institucional"]
[null,null,"6S.10.1 Autorizaciones de Publicación"]
["6S.10",null,"6S.10.2 Documentación de Sistema"]
[null,null,"6S.10.3 Documentos"]
[null,null,"6S.10.4 Interoperabilidad"]
[null,null,"6S.10.5 Manuales de Operación"]
[null,null,"6S.10.6 Poblamiento"]
[]
[null,null,"6S.11 Servicios bibliotecarios"]
[null,null,"6S.11.1 Acreditación de No Adeudo y Entrega de Trabajo de Titulación"]
["6S.11",null,"6S.11.2 Adeudos y Sanciones de Préstamos"]
[null,null,"6S.11.3 Colección de Reserva"]
[null,null,"6S.11.4 Consulta y Referencia"]
[null,null,"6S.11.5 Inducción"]
[null,null,"6S.11.6 Préstamo de cubículos y salas"]
[null,null,"6S.11.7 Préstamo de Laptops"]
[null,null,"6S.11.8 Préstamo en Sala"]
[null,null,"6S.11.9 Préstamo Externo"]
[null,null,"6S.11.10 Préstamo Interbibliotecario"]
[null,null,"6S.11.11 Recuperación de Documentos"]
[null,null,"6S.11.12 Registro de Visitantes"]
[null,null,"6S.11.13 Visita Guiada "]

{"sheet":"Instrucciones","index":3,"n_rows":47,"n_cols":33,"rows_kept":47,"cut":false,"hidden":true,"merged":[[5,4,5,5],[2,4,2,9],[7,2,7,8],[8,2,8,3],[8,4,8,5],[8,7,8,8],[4,4,4,5],[9,2,9,3],[9,4,9,5],[9,7,9,8],[10,2,10,3],[10,4,10,5],[10,7,10,8],[11,2,11,3],[11,4,11,5],[11,6,11,7],[17,12,17,13],[17,18,17,19],[17,22,17,24],[12,2,12,3],[12,4,12,5],[12,6,12,7],[18,7,18,9],[18,10,18,11],[17,14,17,15],[15,4,15,7],[15,2,15,3],[19,7,19,9],[19,10,19,11],[20,7,20,9],[20,10,20,11],[21,7,21,9],[21,10,21,11],[31,10,31,11],[22,7,22,9],[22,10,22,11],[23,7,23,9],[23,10,23,11],[24,7,24,9],[24,10,24,11],[37,6,37,7],[25,7,25,9],[25,10,25,11],[26,7,26,9],[26,10,26,11],[32,7,32,9],[32,10,32,11],[27,7,27,9],[27,10,27,11],[28,7,28,9],[28,10,28,11],[29,7,29,9],[29,10,29,11],[30,7,30,9],[30,10,30,11],[31,7,31,9],[17,27,17,30],[44,8,44,9],[45,8,45,9],[46,8,46,9],[43,1,43,3],[43,5,43,6],[43,8,43,9],[44,1,45,3],[44,5,44,6],[45,5,45,6],[46,1,46,3],[46,5,46,6],[33,22,33,24],[35,1,35,7],[36,1,36,5],[37,1,37,2]]}
[]
[]
[]
[]
[null,null,null,null,"Lugar y Fecha de Elaboración:",null,null,null,"Versión 2021/ CADIDO 2017"]
[null,null,null,null,null,null,null,"Tipo de Archivo:"]
[null,null,null,null,null,null,null,"Hoja No.:"," de "]
[null,null,"DATOS DE IDENTIFICACIÓN"]
[null,null,"Fondo:",null,null,null,"Subfondo:"]
[null,null,"Unidad Académica o Dependencia Administrativa:",null,null,null,"Departamento:"]
[null,null,"Domicilio:",null,null,null,"Código del  Área:"]
[null,null,"Nombre del titular del área:",null,null,null,"Cargo del Titular del Área:"]
[null,null,"Teléfono/extensión:",null,null,null,"Correo electrónico institucional:"]
[]
[]
[null,null,"Nombre de la caja y número:"]
[]
[null,null,null,null,null,null,null,null,null,null,null,null,"Periodo de Trámite (Fechas Extremas)",null,"Condiciones de Acceso (Preclasificación)",null,"Valores Documentales Primarios","Valores Documentales Secundarios","Vigencia Documental (años)",null,"Tipología(s) Documental(es)","Soporte(s) Documental(es)","Tradición Documental",null,null,null,null,"Total Electrónico"]
[null,"No. Consecutivo","No. Expediente","Volumen o Legajo","Sección","Serie o Subserie","Código de Clasificación del expediente","Nombre del Expediente",null,null,"Asunto o descripción del contenido del expediente",null,"Inicio/ Apertura","Término/ Cierre","Público, Reservado, Confidencial","Periodo de Reserva (años)","Admvo/ Jurídico/ Legal/ Fiscal/ Contable/ Técnico/ Informativo/","Histórico/ Testimonial/ Evidencial/ Científico/ Cultural/ Informativo","Archivo de Trámite","Archivo de Concentración","Actas, Inventarios, Facturas, Minutas, Oficios, Acuerdos, Listas, Vales, Planos, etc.","Impreso (papel), Electrónico, Informático, Audiovisual, Gráfico, otro (describir):","Originales","Acuses","Copias","Total de Fojas o folios del expediente/ legajo","Metros Lineales","Kb","Mb","Gb","TB","Ubicación                                        (Topográfica/ Ruta de Acceso electrónica)","Observaciones"]
[null,1]
[null,2]
[null,3]
[null,4]
[null,5]
[null,6]
[null,7]
[null,8]
[null,9]
[null,11]
[null,12]
[null,13]
[null,14]
[null,15]
[null,null,null,null,null,null,null,null,null,null,null,null,null,null,null,null,null,null,null,null,null,null,"TOTALES:",null,null,{"$f":"SUM(Z20:Z33)","v":0},{"$f":"SUM(AA20:AA33)","v":0},{"$f":"SUM(AB20:AB33)","v":0},{"$f":"SUM(AC20:AC33)","v":0},0,0]
[]
[]
[null,"Declaro bajo protesta de decir verdad que el presente inventario consta de un total de:",null,null,null,null,null,"expedientes,"]
[null,"amparando un total de ",null,{"$f":"Z34","v":0},"fojas (folios), de los años:","( __________ ) al ( __________ ),","contenidos en un total"]
[null,"de:",null,"cajas, sumando:",{"$f":"AA34","v":0},"metros lineales, un total de:",null,"Kg"]
[null,"y:",null,"Kb/Mb/Gb/Tb"]
[]
[]
[]
[null,"Responsable de Elaboración:",null,null,null,"Revisó:",null,null,"Titular del Área (Autoriza/ valida):"]
[null,"(Nombre y firma)"]
[null,null,null,null,null,"(Nombre y Firma)",null,null,"(Nombre y Firma)"]
[null,"Cargo",null,null,null,"Cargo",null,null,"Cargo"]

{"sheet":"Equivalencias","index":4,"n_rows":852,"n_cols":8,"rows_kept":852,"cut":false,"hidden":true,"merged":[[17,2,17,3],[1,1,1,13],[2,1,2,13],[3,1,3,13],[4,1,4,13],[12,1,12,4],[13,1,13,3],[14,1,14,3],[5,1,5,13],[7,1,7,13],[9,1,9,13]]}
[]
[null,"UNIVERSIDAD DE GUANAJUATO"]
[null,"SECRETARÍA GENERAL"]
[null,"COORDINACIÓN DEL ARCHIVO GENERAL"]
[null,"SISTEMA INSTITUCIONAL DE ARCHIVOS"]
[null,"TABLA DE EQUIVALENCIAS DOCUMENTALES"]
[]
[null,"Fuente 1: INSTRUCTIVO PARA EL TRÁMITE DE BAJA DOCUMENTAL DE ARCHIVOS DEL GOBIERNO FEDERAL. Versión electrónica: http://himfg.com.mx/descargas/documentos/orarchivos/InstructivoBajasDocumentales_24082012.pdf. Fecha de Consulta: 04/septiembre/2020"]
[]
[null,"Fuente 2: \"FCA-11_Guía_de_Archivo Documental\" del Instituto Politécnico Nacional. https://www.ipn.mx/assets/files/drmi/docs/drmi/dsg/dda/FCA-11_Guia_de_Archivo_Documental.xlsx. Fecha de Consulta: 04/septiembre/2020."]
[]
[]
[null,"RECOMENDACIONES: "]
[null,"1. Capacidad máxima por fólder o legajo:",null,null,"01 a 150 fojas"]
[null,"2. Capacidad máxima de una carpeta blanca o tipo lefford (Tamaño oficio/copia):",null,null,"01 a 500 fojas"]
[]
[]
[null,null,"Total de Fojas/Hojas (Rango)",null,"Equivalencia en Metros Lineales","Unidad de Medida","Equivalencia en Kilogramos","Unidad de Medida"]
[null,null,1,6,4.0000000000000002E-4,"Mts.",{"$f":"E19*40","v":1.6E-2},"Kg."]
[null,null,7,12,{"$f":"+E1+0.0008","v":8.0000000000000004E-4},"Mts.",{"$f":"E20*40","v":3.2000000000000001E-2},"Kg."]
[null,null,13,18,{"$f":"+E20+0.0008","v":1.6000000000000001E-3},"Mts.",6.4000000000000001E-2,"Kg."]
[null,null,19,24,2.4000000000000002E-3,"Mts.",9.6000000000000002E-2,"Kg."]
[null,null,25,30,3.2000000000000002E-3,"Mts.",0.128,"Kg."]
[null,null,31,36,4.0000000000000001E-3,"Mts.",0.16,"Kg."]
[null,null,37,42,4.8000000000000004E-3,"Mts.",0.192,"Kg."]
[null,null,43,48,5.6000000000000008E-3,"Mts.",0.22400000000000003,"Kg."]
[null,null,49,54,6.4000000000000012E-3,"Mts.",0.25600000000000006,"Kg."]
[null,null,55,60,7.2000000000000015E-3,"Mts.",0.28800000000000003,"Kg."]
[null,null,61,66,8.0000000000000019E-3,"Mts.",0.32000000000000006,"Kg."]
[null,null,67,72,8.8000000000000023E-3,"Mts.",0.35200000000000009,"Kg."]
[null,null,73,78,9.6000000000000026E-3,"Mts.",0.38400000000000012,"Kg."]
[null,null,79,84,1.0400000000000003E-2,"Mts.",0.41600000000000015,"Kg."]
[null,null,85,90,1.1200000000000003E-2,"Mts.",0.44800000000000012,"Kg."]
[null,null,91,96,1.2000000000000004E-2,"Mts.",0.48000000000000015,"Kg."]
[null,null,97,102,1.2800000000000004E-2,"Mts.",0.51200000000000012,"Kg."]
[null,null,103,108,1.3600000000000004E-2,"Mts.",0.54400000000000015,"Kg."]
[null,null,109,114,1.4400000000000005E-2,"Mts.",0.57600000000000018,"Kg."]
[null,null,115,120,1.5200000000000005E-2,"Mts.",0.60800000000000021,"Kg."]
[null,null,121,126,1.6000000000000004E-2,"Mts.",0.64000000000000012,"Kg."]
[null,null,127,132,1.6800000000000002E-2,"Mts.",0.67200000000000015,"Kg."]
[null,null,133,138,1.7600000000000001E-2,"Mts.",0.70400000000000007,"Kg."]
[null,null,139,144,1.84E-2,"Mts.",0.73599999999999999,"Kg."]
[null,null,145,150,1.9199999999999998E-2,"Mts.",0.7679999999999999,"Kg."]
[null,null,151,156,1.9999999999999997E-2,"Mts.",0.79999999999999982,"Kg."]
[null,null,157,162,2.0799999999999996E-2,"Mts.",0.83199999999999985,"Kg."]
[null,null,163,168,2.1599999999999994E-2,"Mts.",0.86399999999999977,"Kg."]
[null,null,169,174,2.2399999999999993E-2,"Mts.",0.89599999999999969,"Kg."]
[null,null,175,180,2.3199999999999991E-2,"Mts.",0.92799999999999971,"Kg."]
[null,null,181,186,2.399999999999999E-2,"Mts.",0.95999999999999963,"Kg."]
[null,null,187,192,2.4799999999999989E-2,"Mts.",0.99199999999999955,"Kg."]
[null,null,193,198,2.5599999999999987E-2,"Mts.",1.0239999999999996,"Kg."]
[null,null,199,204,2.6399999999999986E-2,"Mts.",1.0559999999999994,"Kg."]
[null,null,205,210,2.7199999999999985E-2,"Mts.",1.0879999999999994,"Kg."]
[null,null,211,216,2.7999999999999983E-2,"Mts.",1.1199999999999992,"Kg."]
[null,null,217,222,2.8799999999999982E-2,"Mts.",1.1519999999999992,"Kg."]
[null,null,223,228,2.959999999999998E-2,"Mts.",1.1839999999999993,"Kg."]
[null,null,229,234,3.0399999999999979E-2,"Mts.",1.2159999999999991,"Kg."]
[null,null,235,240,3.1199999999999978E-2,"Mts.",1.2479999999999991,"Kg."]
[null,null,241,246,3.199999999999998E-2,"Mts.",1.2799999999999991,"Kg."]
[null,null,247,252,3.2799999999999982E-2,"Mts.",1.3119999999999994,"Kg."]
[null,null,253,258,3.3599999999999984E-2,"Mts.",1.3439999999999994,"Kg."]
[null,null,259,264,3.4399999999999986E-2,"Mts.",1.3759999999999994,"Kg."]
[null,null,265,270,3.5199999999999988E-2,"Mts.",1.4079999999999995,"Kg."]
[null,null,271,276,3.599999999999999E-2,"Mts.",1.4399999999999995,"Kg."]
[null,null,277,282,3.6799999999999992E-2,"Mts.",1.4719999999999998,"Kg."]
[null,null,283,288,3.7599999999999995E-2,"Mts.",1.5039999999999998,"Kg."]
[null,null,289,294,3.8399999999999997E-2,"Mts.",1.5359999999999998,"Kg."]
[null,null,295,300,3.9199999999999999E-2,"Mts.",1.5680000000000001,"Kg."]
[null,null,301,306,0.04,"Mts.",1.6,"Kg."]
[null,null,307,312,4.0800000000000003E-2,"Mts.",1.6320000000000001,"Kg."]
[null,null,313,318,4.1600000000000005E-2,"Mts.",1.6640000000000001,"Kg."]
[null,null,319,324,4.2400000000000007E-2,"Mts.",1.6960000000000002,"Kg."]
[null,null,325,330,4.3200000000000009E-2,"Mts.",1.7280000000000004,"Kg."]
[null,null,331,336,4.4000000000000011E-2,"Mts.",1.7600000000000005,"Kg."]
[null,null,337,342,4.4800000000000013E-2,"Mts.",1.7920000000000005,"Kg."]
[null,null,343,348,4.5600000000000016E-2,"Mts.",1.8240000000000007,"Kg."]
[null,null,349,354,4.6400000000000018E-2,"Mts.",1.8560000000000008,"Kg."]
[null,null,355,360,4.720000000000002E-2,"Mts.",1.8880000000000008,"Kg."]
[null,null,361,366,4.8000000000000022E-2,"Mts.",1.9200000000000008,"Kg."]
[null,null,367,372,4.8800000000000024E-2,"Mts.",1.9520000000000008,"Kg."]
[null,null,373,378,4.9600000000000026E-2,"Mts.",1.9840000000000011,"Kg."]
[null,null,379,384,5.0400000000000028E-2,"Mts.",2.0160000000000009,"Kg."]
[null,null,385,390,5.120000000000003E-2,"Mts.",2.0480000000000014,"Kg."]
[null,null,391,396,5.2000000000000032E-2,"Mts.",{"$f":"E84*40","v":2.0800000000000014},"Kg."]
[null,null,397,402,{"$f":"+E84+0.0008","v":5.2800000000000034E-2},"Mts.",2.1120000000000014,"Kg."]
[null,null,403,408,5.3600000000000037E-2,"Mts.",2.1440000000000015,"Kg."]
[null,null,409,414,5.4400000000000039E-2,"Mts.",2.1760000000000015,"Kg."]
[null,null,415,420,5.5200000000000041E-2,"Mts.",2.2080000000000015,"Kg."]
[null,null,421,426,5.6000000000000043E-2,"Mts.",2.2400000000000015,"Kg."]
[null,null,427,432,5.6800000000000045E-2,"Mts.",2.272000000000002,"Kg."]
[null,null,433,438,5.7600000000000047E-2,"Mts.",2.304000000000002,"Kg."]
[null,null,439,444,5.8400000000000049E-2,"Mts.",2.3360000000000021,"Kg."]
[null,null,445,450,5.9200000000000051E-2,"Mts.",2.3680000000000021,"Kg."]
[null,null,451,456,6.0000000000000053E-2,"Mts.",2.4000000000000021,"Kg."]
[null,null,457,462,6.0800000000000055E-2,"Mts.",2.4320000000000022,"Kg."]
[null,null,463,468,6.1600000000000057E-2,"Mts.",2.4640000000000022,"Kg."]
[null,null,469,474,6.240000000000006E-2,"Mts.",2.4960000000000022,"Kg."]
[null,null,475,480,6.3200000000000062E-2,"Mts.",2.5280000000000022,"Kg."]
[null,null,481,486,6.4000000000000057E-2,"Mts.",2.5600000000000023,"Kg."]
[null,null,487,492,6.4800000000000052E-2,"Mts.",2.5920000000000023,"Kg."]
[null,null,493,498,6.5600000000000047E-2,"Mts.",2.6240000000000019,"Kg."]
[null,null,499,504,6.6400000000000042E-2,"Mts.",2.6560000000000015,"Kg."]
[null,null,505,510,6.7200000000000037E-2,"Mts.",2.6880000000000015,"Kg."]
[null,null,511,516,6.8000000000000033E-2,"Mts.",2.7200000000000015,"Kg."]
[null,null,517,522,6.8800000000000028E-2,"Mts.",2.7520000000000011,"Kg."]
[null,null,523,528,6.9600000000000023E-2,"Mts.",2.7840000000000007,"Kg."]
[null,null,529,534,7.0400000000000018E-2,"Mts.",2.8160000000000007,"Kg."]
[null,null,535,540,7.1200000000000013E-2,"Mts.",2.8480000000000008,"Kg."]
[null,null,541,546,7.2000000000000008E-2,"Mts.",2.8800000000000003,"Kg."]
[null,null,547,552,7.2800000000000004E-2,"Mts.",2.9119999999999999,"Kg."]
[null,null,553,558,7.3599999999999999E-2,"Mts.",2.944,"Kg."]
[null,null,559,564,7.4399999999999994E-2,"Mts.",2.976,"Kg."]
[null,null,565,570,7.5199999999999989E-2,"Mts.",3.0079999999999996,"Kg."]
[null,null,571,576,7.5999999999999984E-2,"Mts.",3.0399999999999991,"Kg."]
[null,null,577,582,7.6799999999999979E-2,"Mts.",3.0719999999999992,"Kg."]
[null,null,583,588,7.7599999999999975E-2,"Mts.",3.1039999999999992,"Kg."]
[null,null,589,594,7.839999999999997E-2,"Mts.",3.1359999999999988,"Kg."]
[null,null,595,600,7.9199999999999965E-2,"Mts.",3.1679999999999984,"Kg."]
[null,null,601,606,7.999999999999996E-2,"Mts.",3.1999999999999984,"Kg."]
[null,null,607,612,8.0799999999999955E-2,"Mts.",3.2319999999999984,"Kg."]
[null,null,613,618,8.159999999999995E-2,"Mts.",3.263999999999998,"Kg."]
[null,null,619,624,8.2399999999999946E-2,"Mts.",3.2959999999999976,"Kg."]
[null,null,625,630,8.3199999999999941E-2,"Mts.",3.3279999999999976,"Kg."]
[null,null,631,636,8.3999999999999936E-2,"Mts.",3.3599999999999977,"Kg."]
[null,null,637,642,8.4799999999999931E-2,"Mts.",3.3919999999999972,"Kg."]
[null,null,643,648,8.5599999999999926E-2,"Mts.",3.4239999999999968,"Kg."]
[null,null,649,654,8.6399999999999921E-2,"Mts.",3.4559999999999969,"Kg."]
[null,null,655,660,8.7199999999999916E-2,"Mts.",3.4879999999999969,"Kg."]
[null,null,661,666,8.7999999999999912E-2,"Mts.",3.5199999999999965,"Kg."]
[null,null,667,672,8.8799999999999907E-2,"Mts.",3.551999999999996,"Kg."]
[null,null,673,678,8.9599999999999902E-2,"Mts.",3.5839999999999961,"Kg."]
[null,null,679,684,9.0399999999999897E-2,"Mts.",3.6159999999999961,"Kg."]
[null,null,685,690,9.1199999999999892E-2,"Mts.",3.6479999999999957,"Kg."]
[null,null,691,696,9.1999999999999887E-2,"Mts.",3.6799999999999953,"Kg."]
[null,null,697,702,9.2799999999999883E-2,"Mts.",3.7119999999999953,"Kg."]
[null,null,703,708,9.3599999999999878E-2,"Mts.",3.7439999999999953,"Kg."]
[null,null,709,714,9.4399999999999873E-2,"Mts.",3.7759999999999949,"Kg."]
[null,null,715,720,9.5199999999999868E-2,"Mts.",3.8079999999999945,"Kg."]
[null,null,721,726,9.5999999999999863E-2,"Mts.",3.8399999999999945,"Kg."]
[null,null,727,732,9.6799999999999858E-2,"Mts.",3.8719999999999946,"Kg."]
[null,null,733,738,9.7599999999999854E-2,"Mts.",3.9039999999999941,"Kg."]
[null,null,739,744,9.8399999999999849E-2,"Mts.",3.9359999999999937,"Kg."]
[null,null,745,750,9.9199999999999844E-2,"Mts.",3.9679999999999938,"Kg."]
[null,null,751,756,9.9999999999999839E-2,"Mts.",3.9999999999999938,"Kg."]
[null,null,757,762,0.10079999999999983,"Mts.",4.0319999999999929,"Kg."]
[null,null,763,768,0.10159999999999983,"Mts.",4.063999999999993,"Kg."]
[null,null,769,774,0.10239999999999982,"Mts.",4.095999999999993,"Kg."]
[null,null,775,780,0.10319999999999982,"Mts.",{"$f":"E148*40","v":4.127999999999993},"Kg."]
[null,null,781,786,{"$f":"+E148+0.0008","v":0.10399999999999981},"Mts.",4.159999999999993,"Kg."]
[null,null,787,792,0.10479999999999981,"Mts.",4.1919999999999922,"Kg."]
[null,null,793,798,0.10559999999999981,"Mts.",4.2239999999999922,"Kg."]
[null,null,799,804,0.1063999999999998,"Mts.",4.2559999999999922,"Kg."]
[null,null,"SIA",810,0.1071999999999998,"Mts.",4.2879999999999914,"Kg."]
[null,null,811,816,0.10799999999999979,"Mts.",4.3199999999999914,"Kg."]
[null,null,817,822,0.10879999999999979,"Mts.",4.3519999999999914,"Kg."]
[null,null,823,828,0.10959999999999978,"Mts.",4.3839999999999915,"Kg."]
[null,null,829,834,0.11039999999999978,"Mts.",4.4159999999999915,"Kg."]
[null,null,835,840,0.11119999999999977,"Mts.",4.4479999999999906,"Kg."]
[null,null,841,846,0.11199999999999977,"Mts.",4.4799999999999907,"Kg."]
[null,null,847,852,0.11279999999999976,"Mts.",4.5119999999999907,"Kg."]
[null,null,853,858,0.11359999999999976,"Mts.",4.5439999999999898,"Kg."]
[null,null,859,864,0.11439999999999975,"Mts.",4.5759999999999899,"Kg."]
[null,null,865,870,0.11519999999999975,"Mts.",4.6079999999999899,"Kg."]
[null,null,871,876,0.11599999999999974,"Mts.",4.6399999999999899,"Kg."]
[null,null,877,882,0.11679999999999974,"Mts.",4.6719999999999899,"Kg."]
[null,null,883,888,0.11759999999999973,"Mts.",4.7039999999999891,"Kg."]
[null,null,889,894,0.11839999999999973,"Mts.",4.7359999999999891,"Kg."]
[null,null,895,900,0.11919999999999972,"Mts.",4.7679999999999891,"Kg."]
[null,null,901,906,0.11999999999999972,"Mts.",4.7999999999999883,"Kg."]
[null,null,907,912,0.12079999999999971,"Mts.",4.8319999999999883,"Kg."]
[null,null,913,918,0.12159999999999971,"Mts.",4.8639999999999883,"Kg."]
[null,null,919,924,0.1223999999999997,"Mts.",4.8959999999999884,"Kg."]
[null,null,925,930,0.1231999999999997,"Mts.",4.9279999999999884,"Kg."]
[null,null,931,936,0.12399999999999969,"Mts.",4.9599999999999875,"Kg."]
[null,null,937,942,0.12479999999999969,"Mts.",4.9919999999999876,"Kg."]
[null,null,943,948,0.12559999999999968,"Mts.",5.0239999999999876,"Kg."]
[null,null,949,954,0.12639999999999968,"Mts.",5.0559999999999867,"Kg."]
[null,null,955,960,0.12719999999999967,"Mts.",5.0879999999999868,"Kg."]
[null,null,961,966,0.12799999999999967,"Mts.",5.1199999999999868,"Kg."]
[null,null,967,972,0.12879999999999966,"Mts.",5.1519999999999868,"Kg."]
[null,null,973,978,0.12959999999999966,"Mts.",5.1839999999999868,"Kg."]
[null,null,979,984,0.13039999999999966,"Mts.",5.215999999999986,"Kg."]
[null,null,985,990,0.13119999999999965,"Mts.",5.247999999999986,"Kg."]
[null,null,991,996,0.13199999999999965,"Mts.",5.279999999999986,"Kg."]
[null,null,997,1002,0.13279999999999964,"Mts.",5.3119999999999852,"Kg."]
[null,null,1003,1008,0.13359999999999964,"Mts.",5.3439999999999852,"Kg."]
[null,null,1009,1014,0.13439999999999963,"Mts.",5.3759999999999852,"Kg."]
[null,null,1015,1020,0.13519999999999963,"Mts.",5.4079999999999853,"Kg."]
[null,null,1021,1026,0.13599999999999962,"Mts.",5.4399999999999853,"Kg."]
[null,null,1027,1032,0.13679999999999962,"Mts.",5.4719999999999844,"Kg."]
[null,null,1033,1038,0.13759999999999961,"Mts.",5.5039999999999845,"Kg."]
[null,null,1039,1044,0.13839999999999961,"Mts.",5.5359999999999845,"Kg."]
[null,null,1045,1050,0.1391999999999996,"Mts.",5.5679999999999836,"Kg."]
[null,null,1051,1056,0.1399999999999996,"Mts.",5.5999999999999837,"Kg."]
[null,null,1057,1062,0.14079999999999959,"Mts.",5.6319999999999837,"Kg."]
[null,null,1063,1068,0.14159999999999959,"Mts.",5.6639999999999837,"Kg."]
[null,null,1069,1074,0.14239999999999958,"Mts.",5.6959999999999837,"Kg."]
[null,null,1075,1080,0.14319999999999958,"Mts.",5.7279999999999829,"Kg."]
[null,null,1081,1086,0.14399999999999957,"Mts.",5.7599999999999829,"Kg."]
[null,null,1087,1092,0.14479999999999957,"Mts.",5.7919999999999829,"Kg."]
[null,null,1093,1098,0.14559999999999956,"Mts.",5.8239999999999821,"Kg."]
[null,null,1099,1104,0.14639999999999956,"Mts.",5.8559999999999821,"Kg."]
[null,null,1105,1110,0.14719999999999955,"Mts.",5.8879999999999821,"Kg."]
[null,null,1111,1116,0.14799999999999955,"Mts.",5.9199999999999822,"Kg."]
[null,null,1117,1122,0.14879999999999954,"Mts.",5.9519999999999822,"Kg."]
[null,null,1123,1128,0.14959999999999954,"Mts.",5.9839999999999813,"Kg."]
[null,null,1129,1134,0.15039999999999953,"Mts.",6.0159999999999814,"Kg."]
[null,null,1135,1140,0.15119999999999953,"Mts.",6.0479999999999814,"Kg."]
[null,null,1141,1146,0.15199999999999952,"Mts.",6.0799999999999805,"Kg."]
[null,null,1147,1152,0.15279999999999952,"Mts.",6.1119999999999806,"Kg."]
[null,null,1153,1158,0.15359999999999951,"Mts.",6.1439999999999806,"Kg."]
[null,null,1159,1164,0.15439999999999951,"Mts.",{"$f":"E212*40","v":6.1759999999999806},"Kg."]
[null,null,1165,1170,{"$f":"+E212+0.0008","v":0.15519999999999951},"Mts.",6.2079999999999806,"Kg."]
[null,null,1171,1176,0.1559999999999995,"Mts.",6.2399999999999798,"Kg."]
[null,null,1177,1182,0.1567999999999995,"Mts.",6.2719999999999798,"Kg."]
[null,null,1183,1188,0.15759999999999949,"Mts.",6.3039999999999798,"Kg."]
[null,null,1189,1194,0.15839999999999949,"Mts.",6.335999999999979,"Kg."]
[null,null,1195,1200,0.15919999999999948,"Mts.",6.367999999999979,"Kg."]
[null,null,1201,1206,0.15999999999999948,"Mts.",6.399999999999979,"Kg."]
[null,null,1207,1212,0.16079999999999947,"Mts.",6.4319999999999791,"Kg."]
[null,null,1213,1218,0.16159999999999947,"Mts.",6.4639999999999791,"Kg."]
[null,null,1219,1224,0.16239999999999946,"Mts.",6.4959999999999782,"Kg."]
[null,null,1225,1230,0.16319999999999946,"Mts.",6.5279999999999783,"Kg."]
[null,null,1231,1236,0.16399999999999945,"Mts.",6.5599999999999783,"Kg."]
[null,null,1237,1242,0.16479999999999945,"Mts.",6.5919999999999774,"Kg."]
[null,null,1243,1248,0.16559999999999944,"Mts.",6.6239999999999775,"Kg."]
[null,null,1249,1254,0.16639999999999944,"Mts.",6.6559999999999775,"Kg."]
[null,null,1255,1260,0.16719999999999943,"Mts.",6.6879999999999775,"Kg."]
[null,null,1261,1266,0.16799999999999943,"Mts.",6.7199999999999775,"Kg."]
[null,null,1267,1272,0.16879999999999942,"Mts.",6.7519999999999767,"Kg."]
[null,null,1273,1278,0.16959999999999942,"Mts.",6.7839999999999767,"Kg."]
[null,null,1279,1284,0.17039999999999941,"Mts.",6.8159999999999767,"Kg."]
[null,null,1285,1290,0.17119999999999941,"Mts.",6.8479999999999759,"Kg."]
[null,null,1291,1296,0.1719999999999994,"Mts.",6.8799999999999759,"Kg."]
[null,null,1297,1302,0.1727999999999994,"Mts.",6.9119999999999759,"Kg."]
[null,null,1303,1308,0.17359999999999939,"Mts.",6.943999999999976,"Kg."]
[null,null,1309,1314,0.17439999999999939,"Mts.",6.975999999999976,"Kg."]
[null,null,1315,1320,0.17519999999999938,"Mts.",7.0079999999999751,"Kg."]
[null,null,1321,1326,0.17599999999999938,"Mts.",7.0399999999999752,"Kg."]
[null,null,1327,1332,0.17679999999999937,"Mts.",7.0719999999999752,"Kg."]
[null,null,1333,1338,0.17759999999999937,"Mts.",7.1039999999999743,"Kg."]
[null,null,1339,1344,0.17839999999999936,"Mts.",7.1359999999999744,"Kg."]
[null,null,1345,1350,0.17919999999999936,"Mts.",7.1679999999999744,"Kg."]
[null,null,1351,1356,0.17999999999999935,"Mts.",7.1999999999999744,"Kg."]
[null,null,1357,1362,0.18079999999999935,"Mts.",7.2319999999999744,"Kg."]
[null,null,1363,1368,0.18159999999999935,"Mts.",7.2639999999999736,"Kg."]
[null,null,1369,1374,0.18239999999999934,"Mts.",7.2959999999999736,"Kg."]
[null,null,1375,1380,0.18319999999999934,"Mts.",7.3279999999999736,"Kg."]
[null,null,1381,1386,0.18399999999999933,"Mts.",7.3599999999999728,"Kg."]
[null,null,1387,1392,0.18479999999999933,"Mts.",7.3919999999999728,"Kg."]
[null,null,1393,1398,0.18559999999999932,"Mts.",7.4239999999999728,"Kg."]
[null,null,1399,1404,0.18639999999999932,"Mts.",7.4559999999999729,"Kg."]
[null,null,1405,1410,0.18719999999999931,"Mts.",7.4879999999999729,"Kg."]
[null,null,1411,1416,0.18799999999999931,"Mts.",7.519999999999972,"Kg."]
[null,null,1417,1422,0.1887999999999993,"Mts.",7.5519999999999721,"Kg."]
[null,null,1423,1428,0.1895999999999993,"Mts.",7.5839999999999721,"Kg."]
[null,null,1429,1434,0.19039999999999929,"Mts.",7.6159999999999712,"Kg."]
[null,null,1435,1440,0.19119999999999929,"Mts.",7.6479999999999713,"Kg."]
[null,null,1441,1446,0.19199999999999928,"Mts.",7.6799999999999713,"Kg."]
[null,null,1447,1452,0.19279999999999928,"Mts.",7.7119999999999713,"Kg."]
[null,null,1453,1458,0.19359999999999927,"Mts.",7.7439999999999714,"Kg."]
[null,null,1459,1464,0.19439999999999927,"Mts.",7.7759999999999705,"Kg."]
[null,null,1465,1470,0.19519999999999926,"Mts.",7.8079999999999705,"Kg."]
[null,null,1471,1476,0.19599999999999926,"Mts.",7.8399999999999705,"Kg."]
[null,null,1477,1482,0.19679999999999925,"Mts.",7.8719999999999697,"Kg."]
[null,null,1483,1488,0.19759999999999925,"Mts.",7.9039999999999697,"Kg."]
[null,null,1489,1494,0.19839999999999924,"Mts.",7.9359999999999697,"Kg."]
[null,null,1495,1500,0.19919999999999924,"Mts.",7.9679999999999698,"Kg."]
[null,null,1501,1506,0.19999999999999923,"Mts.",7.9999999999999698,"Kg."]
[null,null,1507,1512,0.20079999999999923,"Mts.",8.0319999999999698,"Kg."]
[null,null,1513,1518,0.20159999999999922,"Mts.",8.0639999999999681,"Kg."]
[null,null,1519,1524,0.20239999999999922,"Mts.",8.0959999999999681,"Kg."]
[null,null,1525,1530,0.20319999999999921,"Mts.",8.1279999999999681,"Kg."]
[null,null,1531,1536,0.20399999999999921,"Mts.",8.1599999999999682,"Kg."]
[null,null,1537,1542,0.2047999999999992,"Mts.",8.1919999999999682,"Kg."]
[null,null,1543,1548,0.2055999999999992,"Mts.",{"$f":"E276*40","v":8.2239999999999682},"Kg."]
[null,null,1549,1554,{"$f":"+E276+0.0008","v":0.2063999999999992},"Mts.",8.2559999999999683,"Kg."]
[null,null,1555,1560,0.20719999999999919,"Mts.",8.2879999999999683,"Kg."]
[null,null,1561,1566,0.20799999999999919,"Mts.",8.3199999999999683,"Kg."]
[null,null,1567,1572,0.20879999999999918,"Mts.",8.3519999999999666,"Kg."]
[null,null,1573,1578,0.20959999999999918,"Mts.",8.3839999999999666,"Kg."]
[null,null,1579,1584,0.21039999999999917,"Mts.",8.4159999999999666,"Kg."]
[null,null,1585,1590,0.21119999999999917,"Mts.",8.4479999999999666,"Kg."]
[null,null,1591,1596,0.21199999999999916,"Mts.",8.4799999999999667,"Kg."]
[null,null,1597,1602,0.21279999999999916,"Mts.",8.5119999999999667,"Kg."]
[null,null,1603,1608,0.21359999999999915,"Mts.",8.5439999999999667,"Kg."]
[null,null,1609,1614,0.21439999999999915,"Mts.",8.575999999999965,"Kg."]
[null,null,1615,1620,0.21519999999999914,"Mts.",8.607999999999965,"Kg."]
[null,null,1621,1626,0.21599999999999914,"Mts.",8.639999999999965,"Kg."]
[null,null,1627,1632,0.21679999999999913,"Mts.",8.6719999999999651,"Kg."]
[null,null,1633,1638,0.21759999999999913,"Mts.",8.7039999999999651,"Kg."]
[null,null,1639,1644,0.21839999999999912,"Mts.",8.7359999999999651,"Kg."]
[null,null,1645,1650,0.21919999999999912,"Mts.",8.7679999999999652,"Kg."]
[null,null,1651,1656,0.21999999999999911,"Mts.",8.7999999999999652,"Kg."]
[null,null,1657,1662,0.22079999999999911,"Mts.",8.8319999999999652,"Kg."]
[null,null,1663,1668,0.2215999999999991,"Mts.",8.8639999999999635,"Kg."]
[null,null,1669,1674,0.2223999999999991,"Mts.",8.8959999999999635,"Kg."]
[null,null,1675,1680,0.22319999999999909,"Mts.",8.9279999999999635,"Kg."]
[null,null,1681,1686,0.22399999999999909,"Mts.",8.9599999999999635,"Kg."]
[null,null,1687,1692,0.22479999999999908,"Mts.",8.9919999999999636,"Kg."]
[null,null,1693,1698,0.22559999999999908,"Mts.",9.0239999999999636,"Kg."]
[null,null,1699,1704,0.22639999999999907,"Mts.",9.0559999999999636,"Kg."]
[null,null,1705,1710,0.22719999999999907,"Mts.",9.0879999999999619,"Kg."]
[null,null,1711,1716,0.22799999999999906,"Mts.",9.1199999999999619,"Kg."]
[null,null,1717,1722,0.22879999999999906,"Mts.",9.1519999999999619,"Kg."]
[null,null,1723,1728,0.22959999999999905,"Mts.",9.183999999999962,"Kg."]
[null,null,1729,1734,0.23039999999999905,"Mts.",9.215999999999962,"Kg."]
[null,null,1735,1740,0.23119999999999905,"Mts.",9.247999999999962,"Kg."]
[null,null,1741,1746,0.23199999999999904,"Mts.",9.2799999999999621,"Kg."]
[null,null,1747,1752,0.23279999999999904,"Mts.",9.3119999999999621,"Kg."]
[null,null,1753,1758,0.23359999999999903,"Mts.",9.3439999999999621,"Kg."]
[null,null,1759,1764,0.23439999999999903,"Mts.",9.3759999999999604,"Kg."]
[null,null,1765,1770,0.23519999999999902,"Mts.",9.4079999999999604,"Kg."]
[null,null,1771,1776,0.23599999999999902,"Mts.",9.4399999999999604,"Kg."]
[null,null,1777,1782,0.23679999999999901,"Mts.",9.4719999999999605,"Kg."]
[null,null,1783,1788,0.23759999999999901,"Mts.",9.5039999999999605,"Kg."]
[null,null,1789,1794,0.238399999999999,"Mts.",9.5359999999999605,"Kg."]
[null,null,1795,1800,0.239199999999999,"Mts.",9.5679999999999605,"Kg."]
[null,null,1801,1806,0.23999999999999899,"Mts.",9.5999999999999588,"Kg."]
[null,null,1807,1812,0.24079999999999899,"Mts.",9.6319999999999588,"Kg."]
[null,null,1813,1818,0.24159999999999898,"Mts.",9.6639999999999588,"Kg."]
[null,null,1819,1824,0.24239999999999898,"Mts.",9.6959999999999589,"Kg."]
[null,null,1825,1830,0.24319999999999897,"Mts.",9.7279999999999589,"Kg."]
[null,null,1831,1836,0.24399999999999897,"Mts.",9.7599999999999589,"Kg."]
[null,null,1837,1842,0.24479999999999896,"Mts.",9.791999999999959,"Kg."]
[null,null,1843,1848,0.24559999999999896,"Mts.",9.823999999999959,"Kg."]
[null,null,1849,1854,0.24639999999999895,"Mts.",9.855999999999959,"Kg."]
[null,null,1855,1860,0.24719999999999895,"Mts.",9.8879999999999573,"Kg."]
[null,null,1861,1866,0.24799999999999894,"Mts.",9.9199999999999573,"Kg."]
[null,null,1867,1872,0.24879999999999894,"Mts.",9.9519999999999573,"Kg."]
[null,null,1873,1878,0.24959999999999893,"Mts.",9.9839999999999574,"Kg."]
[null,null,1879,1884,0.25039999999999896,"Mts.",10.015999999999959,"Kg."]
[null,null,1885,1890,0.25119999999999898,"Mts.",10.047999999999959,"Kg."]
[null,null,1891,1896,0.251999999999999,"Mts.",10.079999999999959,"Kg."]
[null,null,1897,1902,0.25279999999999903,"Mts.",10.111999999999961,"Kg."]
[null,null,1903,1908,0.25359999999999905,"Mts.",10.143999999999963,"Kg."]
[null,null,1909,1914,0.25439999999999907,"Mts.",10.175999999999963,"Kg."]
[null,null,1915,1920,0.25519999999999909,"Mts.",10.207999999999963,"Kg."]
[null,null,1921,1926,0.25599999999999912,"Mts.",10.239999999999965,"Kg."]
[null,null,1927,1932,0.25679999999999914,"Mts.",{"$f":"E340*40","v":10.271999999999966},"Kg."]
[null,null,1933,1938,{"$f":"+E340+0.0008","v":0.25759999999999916},"Mts.",10.303999999999967,"Kg."]
[null,null,1939,1944,0.25839999999999919,"Mts.",10.335999999999967,"Kg."]
[null,null,1945,1950,0.25919999999999921,"Mts.",10.367999999999968,"Kg."]
[null,null,1951,1956,0.25999999999999923,"Mts.",10.39999999999997,"Kg."]
[null,null,1957,1962,0.26079999999999925,"Mts.",10.43199999999997,"Kg."]
[null,null,1963,1968,0.26159999999999928,"Mts.",10.46399999999997,"Kg."]
[null,null,1969,1974,0.2623999999999993,"Mts.",10.495999999999972,"Kg."]
[null,null,1975,1980,0.26319999999999932,"Mts.",10.527999999999974,"Kg."]
[null,null,1981,1986,0.26399999999999935,"Mts.",10.559999999999974,"Kg."]
[null,null,1987,1992,0.26479999999999937,"Mts.",10.591999999999974,"Kg."]
[null,null,1993,1998,0.26559999999999939,"Mts.",10.623999999999976,"Kg."]
[null,null,1999,2004,0.26639999999999942,"Mts.",10.655999999999977,"Kg."]
[null,null,2005,2010,0.26719999999999944,"Mts.",10.687999999999978,"Kg."]
[null,null,2011,2016,0.26799999999999946,"Mts.",10.719999999999978,"Kg."]
[null,null,2017,2022,0.26879999999999948,"Mts.",10.751999999999979,"Kg."]
[null,null,2023,2028,0.26959999999999951,"Mts.",10.783999999999981,"Kg."]
[null,null,2029,2034,0.27039999999999953,"Mts.",10.815999999999981,"Kg."]
[null,null,2035,2040,0.27119999999999955,"Mts.",10.847999999999981,"Kg."]
[null,null,2041,2046,0.27199999999999958,"Mts.",10.879999999999983,"Kg."]
[null,null,2047,2052,0.2727999999999996,"Mts.",10.911999999999985,"Kg."]
[null,null,2053,2058,0.27359999999999962,"Mts.",10.943999999999985,"Kg."]
[null,null,2059,2064,0.27439999999999964,"Mts.",10.975999999999985,"Kg."]
[null,null,2065,2070,0.27519999999999967,"Mts.",11.007999999999987,"Kg."]
[null,null,2071,2076,0.27599999999999969,"Mts.",11.039999999999988,"Kg."]
[null,null,2077,2082,0.27679999999999971,"Mts.",11.071999999999989,"Kg."]
[null,null,2083,2088,0.27759999999999974,"Mts.",11.103999999999989,"Kg."]
[null,null,2089,2094,0.27839999999999976,"Mts.",11.13599999999999,"Kg."]
[null,null,2095,2100,0.27919999999999978,"Mts.",11.167999999999992,"Kg."]
[null,null,2101,2106,0.2799999999999998,"Mts.",11.199999999999992,"Kg."]
[null,null,2107,2112,0.28079999999999983,"Mts.",11.231999999999992,"Kg."]
[null,null,2113,2118,0.28159999999999985,"Mts.",11.263999999999994,"Kg."]
[null,null,2119,2124,0.28239999999999987,"Mts.",11.295999999999996,"Kg."]
[null,null,2125,2130,0.2831999999999999,"Mts.",11.327999999999996,"Kg."]
[null,null,2131,2136,0.28399999999999992,"Mts.",11.359999999999996,"Kg."]
[null,null,2137,2142,0.28479999999999994,"Mts.",11.391999999999998,"Kg."]
[null,null,2143,2148,0.28559999999999997,"Mts.",11.423999999999999,"Kg."]
[null,null,2149,2154,0.28639999999999999,"Mts.",11.456,"Kg."]
[null,null,2155,2160,0.28720000000000001,"Mts.",11.488,"Kg."]
[null,null,2161,2166,0.28800000000000003,"Mts.",11.520000000000001,"Kg."]
[null,null,2167,2172,0.28880000000000006,"Mts.",11.552000000000003,"Kg."]
[null,null,2173,2178,0.28960000000000008,"Mts.",11.584000000000003,"Kg."]
[null,null,2179,2184,0.2904000000000001,"Mts.",11.616000000000003,"Kg."]
[null,null,2185,2190,0.29120000000000013,"Mts.",11.648000000000005,"Kg."]
[null,null,2191,2196,0.29200000000000015,"Mts.",11.680000000000007,"Kg."]
[null,null,2197,2202,0.29280000000000017,"Mts.",11.712000000000007,"Kg."]
[null,null,2203,2208,0.29360000000000019,"Mts.",11.744000000000007,"Kg."]
[null,null,2209,2214,0.29440000000000022,"Mts.",11.776000000000009,"Kg."]
[null,null,2215,2220,0.29520000000000024,"Mts.",11.80800000000001,"Kg."]
[null,null,2221,2226,0.29600000000000026,"Mts.",11.840000000000011,"Kg."]
[null,null,2227,2232,0.29680000000000029,"Mts.",11.872000000000011,"Kg."]
[null,null,2233,2238,0.29760000000000031,"Mts.",11.904000000000012,"Kg."]
[null,null,2239,2244,0.29840000000000033,"Mts.",11.936000000000014,"Kg."]
[null,null,2245,2250,0.29920000000000035,"Mts.",11.968000000000014,"Kg."]
[null,null,2251,2256,0.30000000000000038,"Mts.",12.000000000000014,"Kg."]
[null,null,2257,2262,0.3008000000000004,"Mts.",12.032000000000016,"Kg."]
[null,null,2263,2268,0.30160000000000042,"Mts.",12.064000000000018,"Kg."]
[null,null,2269,2274,0.30240000000000045,"Mts.",12.096000000000018,"Kg."]
[null,null,2275,2280,0.30320000000000047,"Mts.",12.128000000000018,"Kg."]
[null,null,2281,2286,0.30400000000000049,"Mts.",12.16000000000002,"Kg."]
[null,null,2287,2292,0.30480000000000051,"Mts.",12.192000000000021,"Kg."]
[null,null,2293,2298,0.30560000000000054,"Mts.",12.224000000000022,"Kg."]
[null,null,2299,2304,0.30640000000000056,"Mts.",12.256000000000022,"Kg."]
[null,null,2305,2310,0.30720000000000058,"Mts.",12.288000000000023,"Kg."]
[null,null,2311,2316,0.30800000000000061,"Mts.",{"$f":"E404*40","v":12.320000000000025},"Kg."]
[null,null,2317,2322,{"$f":"+E404+0.0008","v":0.30880000000000063},"Mts.",12.352000000000025,"Kg."]
[null,null,2323,2328,0.30960000000000065,"Mts.",12.384000000000025,"Kg."]
[null,null,2329,2334,0.31040000000000068,"Mts.",12.416000000000027,"Kg."]
[null,null,2335,2340,0.3112000000000007,"Mts.",12.448000000000029,"Kg."]
[null,null,2341,2346,0.31200000000000072,"Mts.",12.480000000000029,"Kg."]
[null,null,2347,2352,0.31280000000000074,"Mts.",12.512000000000029,"Kg."]
[null,null,2353,2358,0.31360000000000077,"Mts.",12.544000000000031,"Kg."]
[null,null,2359,2364,0.31440000000000079,"Mts.",12.576000000000032,"Kg."]
[null,null,2365,2370,0.31520000000000081,"Mts.",12.608000000000033,"Kg."]
[null,null,2371,2376,0.31600000000000084,"Mts.",12.640000000000033,"Kg."]
[null,null,2377,2382,0.31680000000000086,"Mts.",12.672000000000034,"Kg."]
[null,null,2383,2388,0.31760000000000088,"Mts.",12.704000000000036,"Kg."]
[null,null,2389,2394,0.3184000000000009,"Mts.",12.736000000000036,"Kg."]
[null,null,2395,2400,0.31920000000000093,"Mts.",12.768000000000036,"Kg."]
[null,null,2401,2406,0.32000000000000095,"Mts.",12.800000000000038,"Kg."]
[null,null,2407,2412,0.32080000000000097,"Mts.",12.83200000000004,"Kg."]
[null,null,2413,2418,0.321600000000001,"Mts.",12.86400000000004,"Kg."]
[null,null,2419,2424,0.32240000000000102,"Mts.",12.89600000000004,"Kg."]
[null,null,2425,2430,0.32320000000000104,"Mts.",12.928000000000042,"Kg."]
[null,null,2431,2436,0.32400000000000106,"Mts.",12.960000000000043,"Kg."]
[null,null,2437,2442,0.32480000000000109,"Mts.",12.992000000000044,"Kg."]
[null,null,2443,2448,0.32560000000000111,"Mts.",13.024000000000044,"Kg."]
[null,null,2449,2454,0.32640000000000113,"Mts.",13.056000000000045,"Kg."]
[null,null,2455,2460,0.32720000000000116,"Mts.",13.088000000000047,"Kg."]
[null,null,2461,2466,0.32800000000000118,"Mts.",13.120000000000047,"Kg."]
[null,null,2467,2472,0.3288000000000012,"Mts.",13.152000000000047,"Kg."]
[null,null,2473,2478,0.32960000000000123,"Mts.",13.184000000000049,"Kg."]
[null,null,2479,2484,0.33040000000000125,"Mts.",13.216000000000051,"Kg."]
[null,null,2485,2490,0.33120000000000127,"Mts.",13.248000000000051,"Kg."]
[null,null,2491,2496,0.33200000000000129,"Mts.",13.280000000000051,"Kg."]
[null,null,2497,2502,0.33280000000000132,"Mts.",13.312000000000053,"Kg."]
[null,null,2503,2508,0.33360000000000134,"Mts.",13.344000000000054,"Kg."]
[null,null,2509,2514,0.33440000000000136,"Mts.",13.376000000000055,"Kg."]
[null,null,2515,2520,0.33520000000000139,"Mts.",13.408000000000055,"Kg."]
[null,null,2521,2526,0.33600000000000141,"Mts.",13.440000000000056,"Kg."]
[null,null,2527,2532,0.33680000000000143,"Mts.",13.472000000000058,"Kg."]
[null,null,2533,2538,0.33760000000000145,"Mts.",13.504000000000058,"Kg."]
[null,null,2539,2544,0.33840000000000148,"Mts.",13.536000000000058,"Kg."]
[null,null,2545,2550,0.3392000000000015,"Mts.",13.56800000000006,"Kg."]
[null,null,2551,2556,0.34000000000000152,"Mts.",13.600000000000062,"Kg."]
[null,null,2557,2562,0.34080000000000155,"Mts.",13.632000000000062,"Kg."]
[null,null,2563,2568,0.34160000000000157,"Mts.",13.664000000000062,"Kg."]
[null,null,2569,2574,0.34240000000000159,"Mts.",13.696000000000064,"Kg."]
[null,null,2575,2580,0.34320000000000161,"Mts.",13.728000000000065,"Kg."]
[null,null,2581,2586,0.34400000000000164,"Mts.",13.760000000000066,"Kg."]
[null,null,2587,2592,0.34480000000000166,"Mts.",13.792000000000066,"Kg."]
[null,null,2593,2598,0.34560000000000168,"Mts.",13.824000000000067,"Kg."]
[null,null,2599,2604,0.34640000000000171,"Mts.",13.856000000000069,"Kg."]
[null,null,2605,2610,0.34720000000000173,"Mts.",13.888000000000069,"Kg."]
[null,null,2611,2616,0.34800000000000175,"Mts.",13.920000000000069,"Kg."]
[null,null,2617,2622,0.34880000000000178,"Mts.",13.952000000000071,"Kg."]
[null,null,2623,2628,0.3496000000000018,"Mts.",13.984000000000073,"Kg."]
[null,null,2629,2634,0.35040000000000182,"Mts.",14.016000000000073,"Kg."]
[null,null,2635,2640,0.35120000000000184,"Mts.",14.048000000000073,"Kg."]
[null,null,2641,2646,0.35200000000000187,"Mts.",14.080000000000075,"Kg."]
[null,null,2647,2652,0.35280000000000189,"Mts.",14.112000000000076,"Kg."]
[null,null,2653,2658,0.35360000000000191,"Mts.",14.144000000000077,"Kg."]
[null,null,2659,2664,0.35440000000000194,"Mts.",14.176000000000077,"Kg."]
[null,null,2665,2670,0.35520000000000196,"Mts.",14.208000000000078,"Kg."]
[null,null,2671,2676,0.35600000000000198,"Mts.",14.24000000000008,"Kg."]
[null,null,2677,2682,0.356800000000002,"Mts.",14.27200000000008,"Kg."]
[null,null,2683,2688,0.35760000000000203,"Mts.",14.30400000000008,"Kg."]
[null,null,2689,2694,0.35840000000000205,"Mts.",14.336000000000082,"Kg."]
[null,null,2695,2700,0.35920000000000207,"Mts.",{"$f":"E468*40","v":14.368000000000084},"Kg."]
[null,null,2701,2706,{"$f":"+E468+0.0008","v":0.3600000000000021},"Mts.",14.400000000000084,"Kg."]
[null,null,2707,2712,0.36080000000000212,"Mts.",14.432000000000084,"Kg."]
[null,null,2713,2718,0.36160000000000214,"Mts.",14.464000000000086,"Kg."]
[null,null,2719,2724,0.36240000000000216,"Mts.",14.496000000000087,"Kg."]
[null,null,2725,2730,0.36320000000000219,"Mts.",14.528000000000088,"Kg."]
[null,null,2731,2736,0.36400000000000221,"Mts.",14.560000000000088,"Kg."]
[null,null,2737,2742,0.36480000000000223,"Mts.",14.592000000000089,"Kg."]
[null,null,2743,2748,0.36560000000000226,"Mts.",14.624000000000091,"Kg."]
[null,null,2749,2754,0.36640000000000228,"Mts.",14.656000000000091,"Kg."]
[null,null,2755,2760,0.3672000000000023,"Mts.",14.688000000000091,"Kg."]
[null,null,2761,2766,0.36800000000000233,"Mts.",14.720000000000093,"Kg."]
[null,null,2767,2772,0.36880000000000235,"Mts.",14.752000000000095,"Kg."]
[null,null,2773,2778,0.36960000000000237,"Mts.",14.784000000000095,"Kg."]
[null,null,2779,2784,0.37040000000000239,"Mts.",14.816000000000095,"Kg."]
[null,null,2785,2790,0.37120000000000242,"Mts.",14.848000000000097,"Kg."]
[null,null,2791,2796,0.37200000000000244,"Mts.",14.880000000000098,"Kg."]
[null,null,2797,2802,0.37280000000000246,"Mts.",14.912000000000099,"Kg."]
[null,null,2803,2808,0.37360000000000249,"Mts.",14.944000000000099,"Kg."]
[null,null,2809,2814,0.37440000000000251,"Mts.",14.9760000000001,"Kg."]
[null,null,2815,2820,0.37520000000000253,"Mts.",15.008000000000102,"Kg."]
[null,null,2821,2826,0.37600000000000255,"Mts.",15.040000000000102,"Kg."]
[null,null,2827,2832,0.37680000000000258,"Mts.",15.072000000000102,"Kg."]
[null,null,2833,2838,0.3776000000000026,"Mts.",15.104000000000104,"Kg."]
[null,null,2839,2844,0.37840000000000262,"Mts.",15.136000000000106,"Kg."]
[null,null,2845,2850,0.37920000000000265,"Mts.",15.168000000000106,"Kg."]
[null,null,2851,2856,0.38000000000000267,"Mts.",15.200000000000106,"Kg."]
[null,null,2857,2862,0.38080000000000269,"Mts.",15.232000000000108,"Kg."]
[null,null,2863,2868,0.38160000000000271,"Mts.",15.264000000000109,"Kg."]
[null,null,2869,2874,0.38240000000000274,"Mts.",15.29600000000011,"Kg."]
[null,null,2875,2880,0.38320000000000276,"Mts.",15.32800000000011,"Kg."]
[null,null,2881,2886,0.38400000000000278,"Mts.",15.360000000000111,"Kg."]
[null,null,2887,2892,0.38480000000000281,"Mts.",15.392000000000113,"Kg."]
[null,null,2893,2898,0.38560000000000283,"Mts.",15.424000000000113,"Kg."]
[null,null,2899,2904,0.38640000000000285,"Mts.",15.456000000000113,"Kg."]
[null,null,2905,2910,0.38720000000000288,"Mts.",15.488000000000115,"Kg."]
[null,null,2911,2916,0.3880000000000029,"Mts.",15.520000000000117,"Kg."]
[null,null,2917,2922,0.38880000000000292,"Mts.",15.552000000000117,"Kg."]
[null,null,2923,2928,0.38960000000000294,"Mts.",15.584000000000117,"Kg."]
[null,null,2929,2934,0.39040000000000297,"Mts.",15.616000000000119,"Kg."]
[null,null,2935,2940,0.39120000000000299,"Mts.",15.64800000000012,"Kg."]
[null,null,2941,2946,0.39200000000000301,"Mts.",15.680000000000121,"Kg."]
[null,null,2947,2952,0.39280000000000304,"Mts.",15.712000000000121,"Kg."]
[null,null,2953,2958,0.39360000000000306,"Mts.",15.744000000000122,"Kg."]
[null,null,2959,2964,0.39440000000000308,"Mts.",15.776000000000124,"Kg."]
[null,null,2965,2970,0.3952000000000031,"Mts.",15.808000000000124,"Kg."]
[null,null,2971,2976,0.39600000000000313,"Mts.",15.840000000000124,"Kg."]
[null,null,2977,2982,0.39680000000000315,"Mts.",15.872000000000126,"Kg."]
[null,null,2983,2988,0.39760000000000317,"Mts.",15.904000000000128,"Kg."]
[null,null,2989,2994,0.3984000000000032,"Mts.",15.936000000000128,"Kg."]
[null,null,2995,3000,0.39920000000000322,"Mts.",15.968000000000128,"Kg."]
[null,null,3001,3006,0.40000000000000324,"Mts.",16.000000000000128,"Kg."]
[null,null,3007,3012,0.40080000000000326,"Mts.",16.032000000000131,"Kg."]
[null,null,3013,3018,0.40160000000000329,"Mts.",16.064000000000132,"Kg."]
[null,null,3019,3024,0.40240000000000331,"Mts.",16.096000000000132,"Kg."]
[null,null,3025,3030,0.40320000000000333,"Mts.",16.128000000000135,"Kg."]
[null,null,3031,3036,0.40400000000000336,"Mts.",16.160000000000135,"Kg."]
[null,null,3037,3042,0.40480000000000338,"Mts.",16.192000000000135,"Kg."]
[null,null,3043,3048,0.4056000000000034,"Mts.",16.224000000000135,"Kg."]
[null,null,3049,3054,0.40640000000000343,"Mts.",16.256000000000135,"Kg."]
[null,null,3055,3060,0.40720000000000345,"Mts.",16.288000000000139,"Kg."]
[null,null,3061,3066,0.40800000000000347,"Mts.",16.320000000000139,"Kg."]
[null,null,3067,3072,0.40880000000000349,"Mts.",16.352000000000139,"Kg."]
[null,null,3073,3078,0.40960000000000352,"Mts.",16.384000000000142,"Kg."]
[null,null,3079,3084,0.41040000000000354,"Mts.",{"$f":"E532*40","v":16.416000000000142},"Kg."]
[null,null,3085,3090,{"$f":"+E532+0.0008","v":0.41120000000000356},"Mts.",16.448000000000143,"Kg."]
[null,null,3091,3096,0.41200000000000359,"Mts.",16.480000000000143,"Kg."]
[null,null,3097,3102,0.41280000000000361,"Mts.",16.512000000000143,"Kg."]
[null,null,3103,3108,0.41360000000000363,"Mts.",16.544000000000146,"Kg."]
[null,null,3109,3114,0.41440000000000365,"Mts.",16.576000000000146,"Kg."]
[null,null,3115,3120,0.41520000000000368,"Mts.",16.608000000000146,"Kg."]
[null,null,3121,3126,0.4160000000000037,"Mts.",16.64000000000015,"Kg."]
[null,null,3127,3132,0.41680000000000372,"Mts.",16.67200000000015,"Kg."]
[null,null,3133,3138,0.41760000000000375,"Mts.",16.70400000000015,"Kg."]
[null,null,3139,3144,0.41840000000000377,"Mts.",16.73600000000015,"Kg."]
[null,null,3145,3150,0.41920000000000379,"Mts.",16.76800000000015,"Kg."]
[null,null,3151,3156,0.42000000000000381,"Mts.",16.800000000000153,"Kg."]
[null,null,3157,3162,0.42080000000000384,"Mts.",16.832000000000154,"Kg."]
[null,null,3163,3168,0.42160000000000386,"Mts.",16.864000000000154,"Kg."]
[null,null,3169,3174,0.42240000000000388,"Mts.",16.896000000000157,"Kg."]
[null,null,3175,3180,0.42320000000000391,"Mts.",16.928000000000157,"Kg."]
[null,null,3181,3186,0.42400000000000393,"Mts.",16.960000000000157,"Kg."]
[null,null,3187,3192,0.42480000000000395,"Mts.",16.992000000000157,"Kg."]
[null,null,3193,3198,0.42560000000000398,"Mts.",17.024000000000157,"Kg."]
[null,null,3199,3204,0.426400000000004,"Mts.",17.056000000000161,"Kg."]
[null,null,3205,3210,0.42720000000000402,"Mts.",17.088000000000161,"Kg."]
[null,null,3211,3216,0.42800000000000404,"Mts.",17.120000000000161,"Kg."]
[null,null,3217,3222,0.42880000000000407,"Mts.",17.152000000000164,"Kg."]
[null,null,3223,3228,0.42960000000000409,"Mts.",17.184000000000164,"Kg."]
[null,null,3229,3234,0.43040000000000411,"Mts.",17.216000000000165,"Kg."]
[null,null,3235,3240,0.43120000000000414,"Mts.",17.248000000000165,"Kg."]
[null,null,3241,3246,0.43200000000000416,"Mts.",17.280000000000165,"Kg."]
[null,null,3247,3252,0.43280000000000418,"Mts.",17.312000000000168,"Kg."]
[null,null,3253,3258,0.4336000000000042,"Mts.",17.344000000000168,"Kg."]
[null,null,3259,3264,0.43440000000000423,"Mts.",17.376000000000168,"Kg."]
[null,null,3265,3270,0.43520000000000425,"Mts.",17.408000000000172,"Kg."]
[null,null,3271,3276,0.43600000000000427,"Mts.",17.440000000000172,"Kg."]
[null,null,3277,3282,0.4368000000000043,"Mts.",17.472000000000172,"Kg."]
[null,null,3283,3288,0.43760000000000432,"Mts.",17.504000000000172,"Kg."]
[null,null,3289,3294,0.43840000000000434,"Mts.",17.536000000000172,"Kg."]
[null,null,3295,3300,0.43920000000000436,"Mts.",17.568000000000175,"Kg."]
[null,null,3301,3306,0.44000000000000439,"Mts.",17.600000000000176,"Kg."]
[null,null,3307,3312,0.44080000000000441,"Mts.",17.632000000000176,"Kg."]
[null,null,3313,3318,0.44160000000000443,"Mts.",17.664000000000179,"Kg."]
[null,null,3319,3324,0.44240000000000446,"Mts.",17.696000000000179,"Kg."]
[null,null,3325,3330,0.44320000000000448,"Mts.",17.728000000000179,"Kg."]
[null,null,3331,3336,0.4440000000000045,"Mts.",17.760000000000179,"Kg."]
[null,null,3337,3342,0.44480000000000453,"Mts.",17.792000000000179,"Kg."]
[null,null,3343,3348,0.44560000000000455,"Mts.",17.824000000000183,"Kg."]
[null,null,3349,3354,0.44640000000000457,"Mts.",17.856000000000183,"Kg."]
[null,null,3355,3360,0.44720000000000459,"Mts.",17.888000000000183,"Kg."]
[null,null,3361,3366,0.44800000000000462,"Mts.",17.920000000000186,"Kg."]
[null,null,3367,3372,0.44880000000000464,"Mts.",17.952000000000186,"Kg."]
[null,null,3373,3378,0.44960000000000466,"Mts.",17.984000000000187,"Kg."]
[null,null,3379,3384,0.45040000000000469,"Mts.",18.016000000000187,"Kg."]
[null,null,3385,3390,0.45120000000000471,"Mts.",18.048000000000187,"Kg."]
[null,null,3391,3396,0.45200000000000473,"Mts.",18.08000000000019,"Kg."]
[null,null,3397,3402,0.45280000000000475,"Mts.",18.11200000000019,"Kg."]
[null,null,3403,3408,0.45360000000000478,"Mts.",18.14400000000019,"Kg."]
[null,null,3409,3414,0.4544000000000048,"Mts.",18.176000000000194,"Kg."]
[null,null,3415,3420,0.45520000000000482,"Mts.",18.208000000000194,"Kg."]
[null,null,3421,3426,0.45600000000000485,"Mts.",18.240000000000194,"Kg."]
[null,null,3427,3432,0.45680000000000487,"Mts.",18.272000000000194,"Kg."]
[null,null,3433,3438,0.45760000000000489,"Mts.",18.304000000000194,"Kg."]
[null,null,3439,3444,0.45840000000000491,"Mts.",18.336000000000197,"Kg."]
[null,null,3445,3450,0.45920000000000494,"Mts.",18.368000000000198,"Kg."]
[null,null,3451,3456,0.46000000000000496,"Mts.",18.400000000000198,"Kg."]
[null,null,3457,3462,0.46080000000000498,"Mts.",18.432000000000201,"Kg."]
[null,null,3463,3468,0.46160000000000501,"Mts.",{"$f":"E596*40","v":18.464000000000201},"Kg."]
[null,null,3469,3474,{"$f":"+E596+0.0008","v":0.46240000000000503},"Mts.",18.496000000000201,"Kg."]
[null,null,3475,3480,0.46320000000000505,"Mts.",18.528000000000201,"Kg."]
[null,null,3481,3486,0.46400000000000508,"Mts.",18.560000000000201,"Kg."]
[null,null,3487,3492,0.4648000000000051,"Mts.",18.592000000000205,"Kg."]
[null,null,3493,3498,0.46560000000000512,"Mts.",18.624000000000205,"Kg."]
[null,null,3499,3504,0.46640000000000514,"Mts.",18.656000000000205,"Kg."]
[null,null,3505,3510,0.46720000000000517,"Mts.",18.688000000000208,"Kg."]
[null,null,3511,3516,0.46800000000000519,"Mts.",18.720000000000208,"Kg."]
[null,null,3517,3522,0.46880000000000521,"Mts.",18.752000000000209,"Kg."]
[null,null,3523,3528,0.46960000000000524,"Mts.",18.784000000000209,"Kg."]
[null,null,3529,3534,0.47040000000000526,"Mts.",18.816000000000209,"Kg."]
[null,null,3535,3540,0.47120000000000528,"Mts.",18.848000000000212,"Kg."]
[null,null,3541,3546,0.4720000000000053,"Mts.",18.880000000000212,"Kg."]
[null,null,3547,3552,0.47280000000000533,"Mts.",18.912000000000212,"Kg."]
[null,null,3553,3558,0.47360000000000535,"Mts.",18.944000000000216,"Kg."]
[null,null,3559,3564,0.47440000000000537,"Mts.",18.976000000000216,"Kg."]
[null,null,3565,3570,0.4752000000000054,"Mts.",19.008000000000216,"Kg."]
[null,null,3571,3576,0.47600000000000542,"Mts.",19.040000000000216,"Kg."]
[null,null,3577,3582,0.47680000000000544,"Mts.",19.072000000000216,"Kg."]
[null,null,3583,3588,0.47760000000000546,"Mts.",19.104000000000219,"Kg."]
[null,null,3589,3594,0.47840000000000549,"Mts.",19.13600000000022,"Kg."]
[null,null,3595,3600,0.47920000000000551,"Mts.",19.16800000000022,"Kg."]
[null,null,3601,3606,0.48000000000000553,"Mts.",19.200000000000223,"Kg."]
[null,null,3607,3612,0.48080000000000556,"Mts.",19.232000000000223,"Kg."]
[null,null,3613,3618,0.48160000000000558,"Mts.",19.264000000000223,"Kg."]
[null,null,3619,3624,0.4824000000000056,"Mts.",19.296000000000223,"Kg."]
[null,null,3625,3630,0.48320000000000563,"Mts.",19.328000000000223,"Kg."]
[null,null,3631,3636,0.48400000000000565,"Mts.",19.360000000000227,"Kg."]
[null,null,3637,3642,0.48480000000000567,"Mts.",19.392000000000227,"Kg."]
[null,null,3643,3648,0.48560000000000569,"Mts.",19.424000000000227,"Kg."]
[null,null,3649,3654,0.48640000000000572,"Mts.",19.45600000000023,"Kg."]
[null,null,3655,3660,0.48720000000000574,"Mts.",19.48800000000023,"Kg."]
[null,null,3661,3666,0.48800000000000576,"Mts.",19.520000000000231,"Kg."]
[null,null,3667,3672,0.48880000000000579,"Mts.",19.552000000000231,"Kg."]
[null,null,3673,3678,0.48960000000000581,"Mts.",19.584000000000231,"Kg."]
[null,null,3679,3684,0.49040000000000583,"Mts.",19.616000000000234,"Kg."]
[null,null,3685,3690,0.49120000000000585,"Mts.",19.648000000000234,"Kg."]
[null,null,3691,3696,0.49200000000000588,"Mts.",19.680000000000234,"Kg."]
[null,null,3697,3702,0.4928000000000059,"Mts.",19.712000000000238,"Kg."]
[null,null,3703,3708,0.49360000000000592,"Mts.",19.744000000000238,"Kg."]
[null,null,3709,3714,0.49440000000000595,"Mts.",19.776000000000238,"Kg."]
[null,null,3715,3720,0.49520000000000597,"Mts.",19.808000000000238,"Kg."]
[null,null,3721,3726,0.49600000000000599,"Mts.",19.840000000000238,"Kg."]
[null,null,3727,3732,0.49680000000000601,"Mts.",19.872000000000241,"Kg."]
[null,null,3733,3738,0.49760000000000604,"Mts.",19.904000000000241,"Kg."]
[null,null,3739,3744,0.49840000000000606,"Mts.",19.936000000000242,"Kg."]
[null,null,3745,3750,0.49920000000000608,"Mts.",19.968000000000245,"Kg."]
[null,null,3751,3756,0.50000000000000611,"Mts.",20.000000000000245,"Kg."]
[null,null,3757,3762,0.50080000000000613,"Mts.",20.032000000000245,"Kg."]
[null,null,3763,3768,0.50160000000000615,"Mts.",20.064000000000245,"Kg."]
[null,null,3769,3774,0.50240000000000617,"Mts.",20.096000000000245,"Kg."]
[null,null,3775,3780,0.5032000000000062,"Mts.",20.128000000000249,"Kg."]
[null,null,3781,3786,0.50400000000000622,"Mts.",20.160000000000249,"Kg."]
[null,null,3787,3792,0.50480000000000624,"Mts.",20.192000000000249,"Kg."]
[null,null,3793,3798,0.50560000000000627,"Mts.",20.224000000000252,"Kg."]
[null,null,3799,3804,0.50640000000000629,"Mts.",20.256000000000252,"Kg."]
[null,null,3805,3810,0.50720000000000631,"Mts.",20.288000000000252,"Kg."]
[null,null,3811,3816,0.50800000000000634,"Mts.",20.320000000000253,"Kg."]
[null,null,3817,3822,0.50880000000000636,"Mts.",20.352000000000253,"Kg."]
[null,null,3823,3828,0.50960000000000638,"Mts.",20.384000000000256,"Kg."]
[null,null,3829,3834,0.5104000000000064,"Mts.",20.416000000000256,"Kg."]
[null,null,3835,3840,0.51120000000000643,"Mts.",20.448000000000256,"Kg."]
[null,null,3841,3846,0.51200000000000645,"Mts.",20.48000000000026,"Kg."]
[null,null,3847,3852,0.51280000000000647,"Mts.",{"$f":"E660*40","v":20.51200000000026},"Kg."]
[null,null,3853,3858,{"$f":"+E660+0.0008","v":0.5136000000000065},"Mts.",20.54400000000026,"Kg."]
[null,null,3859,3864,0.51440000000000652,"Mts.",20.57600000000026,"Kg."]
[null,null,3865,3870,0.51520000000000654,"Mts.",20.60800000000026,"Kg."]
[null,null,3871,3876,0.51600000000000656,"Mts.",20.640000000000263,"Kg."]
[null,null,3877,3882,0.51680000000000659,"Mts.",20.672000000000263,"Kg."]
[null,null,3883,3888,0.51760000000000661,"Mts.",20.704000000000264,"Kg."]
[null,null,3889,3894,0.51840000000000663,"Mts.",20.736000000000267,"Kg."]
[null,null,3895,3900,0.51920000000000666,"Mts.",20.768000000000267,"Kg."]
[null,null,3901,3906,0.52000000000000668,"Mts.",20.800000000000267,"Kg."]
[null,null,3907,3912,0.5208000000000067,"Mts.",20.832000000000267,"Kg."]
[null,null,3913,3918,0.52160000000000672,"Mts.",20.864000000000267,"Kg."]
[null,null,3919,3924,0.52240000000000675,"Mts.",20.896000000000271,"Kg."]
[null,null,3925,3930,0.52320000000000677,"Mts.",20.928000000000271,"Kg."]
[null,null,3931,3936,0.52400000000000679,"Mts.",20.960000000000271,"Kg."]
[null,null,3937,3942,0.52480000000000682,"Mts.",20.992000000000274,"Kg."]
[null,null,3943,3948,0.52560000000000684,"Mts.",21.024000000000274,"Kg."]
[null,null,3949,3954,0.52640000000000686,"Mts.",21.056000000000274,"Kg."]
[null,null,3955,3960,0.52720000000000689,"Mts.",21.088000000000275,"Kg."]
[null,null,3961,3966,0.52800000000000691,"Mts.",21.120000000000275,"Kg."]
[null,null,3967,3972,0.52880000000000693,"Mts.",21.152000000000278,"Kg."]
[null,null,3973,3978,0.52960000000000695,"Mts.",21.184000000000278,"Kg."]
[null,null,3979,3984,0.53040000000000698,"Mts.",21.216000000000278,"Kg."]
[null,null,3985,3990,0.531200000000007,"Mts.",21.248000000000282,"Kg."]
[null,null,3991,3996,0.53200000000000702,"Mts.",21.280000000000282,"Kg."]
[null,null,3997,4002,0.53280000000000705,"Mts.",21.312000000000282,"Kg."]
[null,null,4003,4008,0.53360000000000707,"Mts.",21.344000000000282,"Kg."]
[null,null,4009,4014,0.53440000000000709,"Mts.",21.376000000000282,"Kg."]
[null,null,4015,4020,0.53520000000000711,"Mts.",21.408000000000285,"Kg."]
[null,null,4021,4026,0.53600000000000714,"Mts.",21.440000000000285,"Kg."]
[null,null,4027,4032,0.53680000000000716,"Mts.",21.472000000000286,"Kg."]
[null,null,4033,4038,0.53760000000000718,"Mts.",21.504000000000289,"Kg."]
[null,null,4039,4044,0.53840000000000721,"Mts.",21.536000000000289,"Kg."]
[null,null,4045,4050,0.53920000000000723,"Mts.",21.568000000000289,"Kg."]
[null,null,4051,4056,0.54000000000000725,"Mts.",21.600000000000289,"Kg."]
[null,null,4057,4062,0.54080000000000727,"Mts.",21.632000000000289,"Kg."]
[null,null,4063,4068,0.5416000000000073,"Mts.",21.664000000000293,"Kg."]
[null,null,4069,4074,0.54240000000000732,"Mts.",21.696000000000293,"Kg."]
[null,null,4075,4080,0.54320000000000734,"Mts.",21.728000000000293,"Kg."]
[null,null,4081,4086,0.54400000000000737,"Mts.",21.760000000000296,"Kg."]
[null,null,4087,4092,0.54480000000000739,"Mts.",21.792000000000296,"Kg."]
[null,null,4093,4098,0.54560000000000741,"Mts.",21.824000000000296,"Kg."]
[null,null,4099,4104,0.54640000000000744,"Mts.",21.856000000000297,"Kg."]
[null,null,4105,4110,0.54720000000000746,"Mts.",21.888000000000297,"Kg."]
[null,null,4111,4116,0.54800000000000748,"Mts.",21.9200000000003,"Kg."]
[null,null,4117,4122,0.5488000000000075,"Mts.",21.9520000000003,"Kg."]
[null,null,4123,4128,0.54960000000000753,"Mts.",21.9840000000003,"Kg."]
[null,null,4129,4134,0.55040000000000755,"Mts.",22.016000000000304,"Kg."]
[null,null,4135,4140,0.55120000000000757,"Mts.",22.048000000000304,"Kg."]
[null,null,4141,4146,0.5520000000000076,"Mts.",22.080000000000304,"Kg."]
[null,null,4147,4152,0.55280000000000762,"Mts.",22.112000000000304,"Kg."]
[null,null,4153,4158,0.55360000000000764,"Mts.",22.144000000000304,"Kg."]
[null,null,4159,4164,0.55440000000000766,"Mts.",22.176000000000307,"Kg."]
[null,null,4165,4170,0.55520000000000769,"Mts.",22.208000000000307,"Kg."]
[null,null,4171,4176,0.55600000000000771,"Mts.",22.240000000000308,"Kg."]
[null,null,4177,4182,0.55680000000000773,"Mts.",22.272000000000311,"Kg."]
[null,null,4183,4188,0.55760000000000776,"Mts.",22.304000000000311,"Kg."]
[null,null,4189,4194,0.55840000000000778,"Mts.",22.336000000000311,"Kg."]
[null,null,4195,4200,0.5592000000000078,"Mts.",22.368000000000311,"Kg."]
[null,null,4201,4206,0.56000000000000782,"Mts.",22.400000000000311,"Kg."]
[null,null,4207,4212,0.56080000000000785,"Mts.",22.432000000000315,"Kg."]
[null,null,4213,4218,0.56160000000000787,"Mts.",22.464000000000315,"Kg."]
[null,null,4219,4224,0.56240000000000789,"Mts.",22.496000000000315,"Kg."]
[null,null,4225,4230,0.56320000000000792,"Mts.",22.528000000000318,"Kg."]
[null,null,4231,4236,0.56400000000000794,"Mts.",{"$f":"E724*40","v":22.560000000000318},"Kg."]
[null,null,4237,4242,{"$f":"+E724+0.0008","v":0.56480000000000796},"Mts.",22.592000000000318,"Kg."]
[null,null,4243,4248,0.56560000000000799,"Mts.",22.624000000000319,"Kg."]
[null,null,4249,4254,0.56640000000000801,"Mts.",22.656000000000319,"Kg."]
[null,null,4255,4260,0.56720000000000803,"Mts.",22.688000000000322,"Kg."]
[null,null,4261,4266,0.56800000000000805,"Mts.",22.720000000000322,"Kg."]
[null,null,4267,4272,0.56880000000000808,"Mts.",22.752000000000322,"Kg."]
[null,null,4273,4278,0.5696000000000081,"Mts.",22.784000000000326,"Kg."]
[null,null,4279,4284,0.57040000000000812,"Mts.",22.816000000000326,"Kg."]
[null,null,4285,4290,0.57120000000000815,"Mts.",22.848000000000326,"Kg."]
[null,null,4291,4296,0.57200000000000817,"Mts.",22.880000000000326,"Kg."]
[null,null,4297,4302,0.57280000000000819,"Mts.",22.912000000000326,"Kg."]
[null,null,4303,4308,0.57360000000000821,"Mts.",22.944000000000329,"Kg."]
[null,null,4309,4314,0.57440000000000824,"Mts.",22.976000000000329,"Kg."]
[null,null,4315,4320,0.57520000000000826,"Mts.",23.00800000000033,"Kg."]
[null,null,4321,4326,0.57600000000000828,"Mts.",23.040000000000333,"Kg."]
[null,null,4327,4332,0.57680000000000831,"Mts.",23.072000000000333,"Kg."]
[null,null,4333,4338,0.57760000000000833,"Mts.",23.104000000000333,"Kg."]
[null,null,4339,4344,0.57840000000000835,"Mts.",23.136000000000333,"Kg."]
[null,null,4345,4350,0.57920000000000837,"Mts.",23.168000000000333,"Kg."]
[null,null,4351,4356,0.5800000000000084,"Mts.",23.200000000000337,"Kg."]
[null,null,4357,4362,0.58080000000000842,"Mts.",23.232000000000337,"Kg."]
[null,null,4363,4368,0.58160000000000844,"Mts.",23.264000000000337,"Kg."]
[null,null,4369,4374,0.58240000000000847,"Mts.",23.29600000000034,"Kg."]
[null,null,4375,4380,0.58320000000000849,"Mts.",23.32800000000034,"Kg."]
[null,null,4381,4386,0.58400000000000851,"Mts.",23.36000000000034,"Kg."]
[null,null,4387,4392,0.58480000000000854,"Mts.",23.392000000000341,"Kg."]
[null,null,4393,4398,0.58560000000000856,"Mts.",23.424000000000341,"Kg."]
[null,null,4399,4404,0.58640000000000858,"Mts.",23.456000000000344,"Kg."]
[null,null,4405,4410,0.5872000000000086,"Mts.",23.488000000000344,"Kg."]
[null,null,4411,4416,0.58800000000000863,"Mts.",23.520000000000344,"Kg."]
[null,null,4417,4422,0.58880000000000865,"Mts.",23.552000000000348,"Kg."]
[null,null,4423,4428,0.58960000000000867,"Mts.",23.584000000000348,"Kg."]
[null,null,4429,4434,0.5904000000000087,"Mts.",23.616000000000348,"Kg."]
[null,null,4435,4440,0.59120000000000872,"Mts.",23.648000000000348,"Kg."]
[null,null,4441,4446,0.59200000000000874,"Mts.",23.680000000000348,"Kg."]
[null,null,4447,4452,0.59280000000000876,"Mts.",23.712000000000351,"Kg."]
[null,null,4453,4458,0.59360000000000879,"Mts.",23.744000000000351,"Kg."]
[null,null,4459,4464,0.59440000000000881,"Mts.",23.776000000000352,"Kg."]
[null,null,4465,4470,0.59520000000000883,"Mts.",23.808000000000355,"Kg."]
[null,null,4471,4476,0.59600000000000886,"Mts.",23.840000000000355,"Kg."]
[null,null,4477,4482,0.59680000000000888,"Mts.",23.872000000000355,"Kg."]
[null,null,4483,4488,0.5976000000000089,"Mts.",23.904000000000355,"Kg."]
[null,null,4489,4494,0.59840000000000892,"Mts.",23.936000000000355,"Kg."]
[null,null,4495,4500,0.59920000000000895,"Mts.",23.968000000000359,"Kg."]
[null,null,4501,4506,0.60000000000000897,"Mts.",24.000000000000359,"Kg."]
[null,null,4507,4512,0.60080000000000899,"Mts.",24.032000000000359,"Kg."]
[null,null,4513,4518,0.60160000000000902,"Mts.",24.064000000000362,"Kg."]
[null,null,4519,4524,0.60240000000000904,"Mts.",24.096000000000362,"Kg."]
[null,null,4525,4530,0.60320000000000906,"Mts.",24.128000000000362,"Kg."]
[null,null,4531,4536,0.60400000000000909,"Mts.",24.160000000000363,"Kg."]
[null,null,4537,4542,0.60480000000000911,"Mts.",24.192000000000363,"Kg."]
[null,null,4543,4548,0.60560000000000913,"Mts.",24.224000000000366,"Kg."]
[null,null,4549,4554,0.60640000000000915,"Mts.",24.256000000000366,"Kg."]
[null,null,4555,4560,0.60720000000000918,"Mts.",24.288000000000366,"Kg."]
[null,null,4561,4566,0.6080000000000092,"Mts.",24.32000000000037,"Kg."]
[null,null,4567,4572,0.60880000000000922,"Mts.",24.35200000000037,"Kg."]
[null,null,4573,4578,0.60960000000000925,"Mts.",24.38400000000037,"Kg."]
[null,null,4579,4584,0.61040000000000927,"Mts.",24.41600000000037,"Kg."]
[null,null,4585,4590,0.61120000000000929,"Mts.",24.44800000000037,"Kg."]
[null,null,4591,4596,0.61200000000000931,"Mts.",24.480000000000373,"Kg."]
[null,null,4597,4602,0.61280000000000934,"Mts.",24.512000000000373,"Kg."]
[null,null,4603,4608,0.61360000000000936,"Mts.",24.544000000000374,"Kg."]
[null,null,4609,4614,0.61440000000000938,"Mts.",24.576000000000377,"Kg."]
[null,null,4615,4620,0.61520000000000941,"Mts.",{"$f":"E788*40","v":24.608000000000377},"Kg."]
[null,null,4621,4626,{"$f":"+E788+0.0008","v":0.61600000000000943},"Mts.",24.640000000000377,"Kg."]
[null,null,4627,4632,0.61680000000000945,"Mts.",24.672000000000377,"Kg."]
[null,null,4633,4638,0.61760000000000947,"Mts.",24.704000000000377,"Kg."]
[null,null,4639,4644,0.6184000000000095,"Mts.",24.736000000000381,"Kg."]
[null,null,4645,4650,0.61920000000000952,"Mts.",24.768000000000381,"Kg."]
[null,null,4651,4656,0.62000000000000954,"Mts.",24.800000000000381,"Kg."]
[null,null,4657,4662,0.62080000000000957,"Mts.",24.832000000000384,"Kg."]
[null,null,4663,4668,0.62160000000000959,"Mts.",24.864000000000384,"Kg."]
[null,null,4669,4674,0.62240000000000961,"Mts.",24.896000000000384,"Kg."]
[null,null,4675,4680,0.62320000000000964,"Mts.",24.928000000000385,"Kg."]
[null,null,4681,4686,0.62400000000000966,"Mts.",24.960000000000385,"Kg."]
[null,null,4687,4692,0.62480000000000968,"Mts.",24.992000000000388,"Kg."]
[null,null,4693,4698,0.6256000000000097,"Mts.",25.024000000000388,"Kg."]
[null,null,4699,4704,0.62640000000000973,"Mts.",25.056000000000388,"Kg."]
[null,null,4705,4710,0.62720000000000975,"Mts.",25.088000000000392,"Kg."]
[null,null,4711,4716,0.62800000000000977,"Mts.",25.120000000000392,"Kg."]
[null,null,4717,4722,0.6288000000000098,"Mts.",25.152000000000392,"Kg."]
[null,null,4723,4728,0.62960000000000982,"Mts.",25.184000000000392,"Kg."]
[null,null,4729,4734,0.63040000000000984,"Mts.",25.216000000000392,"Kg."]
[null,null,4735,4740,0.63120000000000986,"Mts.",25.248000000000395,"Kg."]
[null,null,4741,4746,0.63200000000000989,"Mts.",25.280000000000395,"Kg."]
[null,null,4747,4752,0.63280000000000991,"Mts.",25.312000000000396,"Kg."]
[null,null,4753,4758,0.63360000000000993,"Mts.",25.344000000000399,"Kg."]
[null,null,4759,4764,0.63440000000000996,"Mts.",25.376000000000399,"Kg."]
[null,null,4765,4770,0.63520000000000998,"Mts.",25.408000000000399,"Kg."]
[null,null,4771,4776,0.63600000000001,"Mts.",25.440000000000399,"Kg."]
[null,null,4777,4782,0.63680000000001002,"Mts.",25.472000000000399,"Kg."]
[null,null,4783,4788,0.63760000000001005,"Mts.",25.504000000000403,"Kg."]
[null,null,4789,4794,0.63840000000001007,"Mts.",25.536000000000403,"Kg."]
[null,null,4795,4800,0.63920000000001009,"Mts.",25.568000000000403,"Kg."]
[null,null,4801,4806,0.64000000000001012,"Mts.",25.600000000000406,"Kg."]
[null,null,4807,4812,0.64080000000001014,"Mts.",25.632000000000406,"Kg."]
[null,null,4813,4818,0.64160000000001016,"Mts.",25.664000000000406,"Kg."]
[null,null,4819,4824,0.64240000000001019,"Mts.",25.696000000000407,"Kg."]
[null,null,4825,4830,0.64320000000001021,"Mts.",25.728000000000407,"Kg."]
[null,null,4831,4836,0.64400000000001023,"Mts.",25.76000000000041,"Kg."]
[null,null,4837,4842,0.64480000000001025,"Mts.",25.79200000000041,"Kg."]
[null,null,4843,4848,0.64560000000001028,"Mts.",25.82400000000041,"Kg."]
[null,null,4849,4854,0.6464000000000103,"Mts.",25.856000000000414,"Kg."]
[null,null,4855,4860,0.64720000000001032,"Mts.",25.888000000000414,"Kg."]
[null,null,4861,4866,0.64800000000001035,"Mts.",25.920000000000414,"Kg."]
[null,null,4867,4872,0.64880000000001037,"Mts.",25.952000000000414,"Kg."]
[null,null,4873,4878,0.64960000000001039,"Mts.",25.984000000000414,"Kg."]
[null,null,4879,4884,0.65040000000001041,"Mts.",26.016000000000417,"Kg."]
[null,null,4885,4890,0.65120000000001044,"Mts.",26.048000000000417,"Kg."]
[null,null,4891,4896,0.65200000000001046,"Mts.",26.080000000000418,"Kg."]
[null,null,4897,4902,0.65280000000001048,"Mts.",26.112000000000421,"Kg."]
[null,null,4903,4908,0.65360000000001051,"Mts.",26.144000000000421,"Kg."]
[null,null,4909,4914,0.65440000000001053,"Mts.",26.176000000000421,"Kg."]
[null,null,4915,4920,0.65520000000001055,"Mts.",26.208000000000421,"Kg."]
[null,null,4921,4926,0.65600000000001057,"Mts.",26.240000000000421,"Kg."]
[null,null,4927,4932,0.6568000000000106,"Mts.",26.272000000000425,"Kg."]
[null,null,4933,4938,0.65760000000001062,"Mts.",26.304000000000425,"Kg."]
[null,null,4939,4944,0.65840000000001064,"Mts.",26.336000000000425,"Kg."]
[null,null,4945,4950,0.65920000000001067,"Mts.",26.368000000000428,"Kg."]
[null,null,4951,4956,0.66000000000001069,"Mts.",26.400000000000428,"Kg."]
[null,null,4957,4962,0.66080000000001071,"Mts.",26.432000000000428,"Kg."]
[null,null,4963,4968,0.66160000000001074,"Mts.",26.464000000000429,"Kg."]
[null,null,4969,4974,0.66240000000001076,"Mts.",26.496000000000429,"Kg."]
[null,null,4975,4980,0.66320000000001078,"Mts.",26.528000000000432,"Kg."]
[null,null,4981,4986,0.6640000000000108,"Mts.",26.560000000000432,"Kg."]
[null,null,4987,4992,0.66480000000001083,"Mts.",26.592000000000432,"Kg."]
[null,null,4993,4998,0.66560000000001085,"Mts.",26.624000000000436,"Kg."]
[null,null,4999,5004,0.66640000000001087,"Mts.",{"$f":"E852*40","v":26.656000000000436},"Kg."]

{"sheet":"Datos","index":5,"n_rows":318,"n_cols":13,"rows_kept":318,"cut":false,"hidden":true,"merged":[]}
["Tipo de Archivo","Fondo:","Subfondo","Unidad Académica o Dependencia Administrativa:","Departamento","Código de Área","Secciones","Series o Subseries","Accesibilidad","Valores Primarios","Valores Secundarios","Soporte(s) Documental(es)","Departamento"]
["Archivo de Trámite","Universidad de Guanajuato","Rectoría General","Rectoría General","CAMPUS GUANAJUATO","100101 Rectoría General",null,"(CADIDO V.2017)","Público","Administrativo","Histórico","Impreso","CAMPUS GUANAJUATO"]
["Archivo de Concentración","Colegio del Estado","Secretaría General","Centro de Estudios y Acciones para el Desarrollo Social y Humano","Departamento de Filosofía CGT","100102 Contraloría General","1C Legislación Universitaria",null,"Reservado","Jurídico","Testimonial","Electrónico","Departamento de Filosofía CGT"]
["Archivo Histórico",null,"Secretaría Académica","Defensoría de los Derechos Humanos en el Entorno Universitario","Departamento de Educación CGT","100103 Dirección de Comunicación y Enlace","2C Asuntos Jurídicos","1C LEGISLACIÓN UNIVERSITARIA","Confidencial","Legal","Evidencial","Informático","Departamento de Educación CGT"]
[null,null,"Secretaría de Gestión y Desarrollo","Dirección de Comunicación y Enlace","Departamento de Letras Hispánicas CGT","100104 Oficina del Abogado General","3C Programación, Organización y Presupuestación","1C.1 Disposiciones en materia de legislación",null,"Fiscal","Cultural","Audiovisual","Departamento de Letras Hispánicas CGT"]
[null,null,"Campus Guanajuato CGT","Dirección de Desarrollo Estudiantil","Departamento de Historia CGT","100105 Dirección de Desarrollo Estudiantil","4C Recursos Humanos","1C.2 Programas y proyectos en materia de legislación",null,"Contable","Informativo","Gráfico","Departamento de Historia CGT"]
[null,null,"Campus León CL","Dirección de Igualdad y Corresponsabilidad Social","Departamento de Lenguas CGT","100106 Dirección de Planeación","5C Recursos Financieros","1C.3 Ordenamientos jurídicos universitarios",null,"Técnico","Científico","Mixto","Departamento de Lenguas CGT"]
[null,null,"Campus Irapuato Salamanca CIS","Oficina del Abogado General","Departamento de Estudios Culturales CGT","100107 Centro de Estudios y Acciones para el Desarrollo Social y Humano","6C Recursos Materiales y Obra Pública","1C.3.1 Estatutos",null,"Informativo",null,"Otro:","Departamento de Estudios Culturales CGT"]
[null,null,"Campus Celaya Salvatierra CCS","Sistema de Radio, Televisión e Hipermedia (SIRTH)","Departamento de Ingeniería Química CGT","100108 Unidad de Transparencia","7C Servicios Generales","1C.3.2 Reglamentos"]
[null,null,"Colegio del Nivel Medio Superior CNMS","Unidad de Prevención y Seguridad Universitaria","Departamento de Química CGT","100109 Dirección de Igualdad y Corresponsabilidad Social","8C Tecnologías y Servicios de la Información","1C.3.3 Decretos",null,"Administrativo, Fiscal/Contable",null,null,"División de Ciencias Naturales y Exactas  CGT"]
[null,null,null,"Unidad de Transparencia","Departamento de Biología CGT",null,"9C Comunicación Social","1C.4 Acuerdos del Rector, Rectores de Campus y del Honorable Consejo General Universitario",null,"Administrativo, Legal ",null,null,"Departamento de Ingeniería Química CGT"]
[null,null,"Contraloría General - OIC",null,"Departamento de Farmacia CGT","100201 Secretaría General","10C Auditoría","1C.5 Lineamientos",null,"Administrativo, Jurídico ",null,null,"Departamento de Química CGT"]
[null,null,"Defensoría de los Derechos Humanos en el Entorno Universitario","Secretaría General","Departamento de Astronomía CGT",null,"11C Transparencia y Acceso a la Información","1C.6 Criterios de interpretación",null,"Administrativo, Legal, Fiscal/Contable",null,null,"Departamento de Biología CGT"]
[null,null,"Junta Directiva","Coordinación Administrativa","Departamento de Matemáticas CGT","100301 Secretaría Académica",null,"1C.7 Instrumentos jurídicos consensuales",null,"Administrativo, Legal, Fiscal/Contable, Técnico",null,null,"Departamento de Farmacia CGT"]
[null,null,"Patronato de la Universidad de Guanajuato","Coordinación del Archivo General","Departamento de Enfermaería y Obstetricia CGT","100302 Dirección de Apoyo a la Investigación","1S Docencia","1C.8 Registro y certificación de firmas",null,"Administrativo, Legal, Fiscal/Contable, Técnico, Informativo",null,null,"Departamento de Astronomía CGT"]
[null,null,null,"Imprenta Universitaria","Departamento de Artes Visuales CGT","100303 Dirección de Extensión Cultural","2S Investigación","1C.9 Sesiones de Trabajo",null,"Administrativo, Jurídico, Legal, Fiscal/Contable",null,null,"Departamento de Matemáticas CGT"]
[null,null,null,"Secretaría Técnica de Órganos Colegiados","Departamento de Arquitectura CGT","100304 Dirección de Cooperación Académica","3S  Control Escolar","1C.9.1 Actas y Minutas de Reuniones Ordinarias y Extraordinarias",null,"Administrativo, Jurídico, Legal, ",null,null,"Departamento de Enfermaería y Obstetricia CGT"]
[null,null,null,"Unidad de Mediación y Conciliación","Departamento de Diseño CGT","100305 Dirección de Asuntos Académicos","4S Difusión y Extensión Cultural","1C.10 Comités, Consejos y Comisiones",null,"Administrativo, Técnico",null,null,"División de Arquitectura, Arte y Diseño CGT"]
[null,null,null,null,"Departamento de Música CGT","100306 Dirección de Vinculación","5S Gobierno","1C.10.1 Dictámenes",null,"Administrativo, Informativo",null,null,"Departamento de Artes Visuales CGT"]
[null,null,null,"Secretaría Académica","Departamento de Ingeniería Civil CGT","100307 Sistema de Radio, Televisión e Hipermedia (SIRTH)",null,null,null,"Legal, Fiscal/Contable",null,null,"Departamento de Arquitectura CGT"]
[null,null,null,"Dirección de Administración Escolar","Departamento de Ingeniería Geomática CGT","100308 Dirección de Administración Escolar",null,"2C ASUNTOS JURÍDICOS",null,"Legal, Informativo",null,null,"Departamento de Diseño CGT"]
[null,null,null,"Dirección de Apoyo a la Investigación","Departamento de Ingeniería en Minas, Metalurgia y Geología CGT","100309 Unidad de Apoyo al Desarrollo Educativo",16,"2C.1 Programas y proyectos referentes a asuntos jurídicos",null,"Legal, Técnico",null,null,"Departamento de Música CGT"]
[null,null,null,"Dirección de Apoyo a la Investigación y al Posgrado","Departamento de Estudios Organizacionales CGT","100310 Sistema Universitario de Multimodalidad Educativa (SUME)",17,"2C.2 Actuaciones y representaciones",null,"Jurídico-Fiscal/Contable",null,null,"División de Ingenierías CGT"]
[null,null,null,"Dirección de Asuntos Académicos","Departamento de Economía y Finanzas CGT","100311 Unidad de Responsabilidad Social",18,"2C.3 Asistencia, asesoría y consulta",null,"Jurídico, Legal",null,null,"Departamento de Ingeniería Civil CGT"]
[null,null,null,"Dirección de Cooperación Académica","Departamento de Gestión y Dirección de Empresas CGT","100312 Ecosistema Vida UG",19,"2C.4 Juicios",null,"Jurídico, Legal, Fiscal/Contable",null,null,"Departamento de Ingeniería Geomática CGT"]
[null,null,null,"Dirección de Extensión Cultural","Departamento de Derecho CGT","100313 Programa Editorial",20,"2C.4.1 Juicios contra la Universidad de Guanajuato",null,null,null,null,"Departamento de Ingeniería en Minas, Metalurgia y Geología CGT"]
[null,null,null,"Dirección de Extensión Cultural","Departamento de Gestión Pública CGT","100314 Sistema Bibliotecario",21,"2C.4.2 Juicios de la Universidad de Guanajuato",null,null,null,null,"División de Ciencias Económico Administrativas CGT"]
[null,null,null,"Dirección de Relaciones Internacionales y Colaboración Académica","Departamento de Estudios Políticos y de Gobierno",null,22,"2C.6 Propiedad intelectual, autoral e industrial",null,null,null,null,"Departamento de Estudios Organizacionales CGT"]
[null,null,null,"Dirección de Vinculación",null,"100401 Secretaría de Gestión",23,"2C.6.1 Derechos de propiedad industrial",null,null,null,null,"Departamento de Economía y Finanzas CGT"]
[null,null,null,"Ecosistema de Vinculación, Innovación, Desarrollo y Aplicación del conocimiento (VIDA UG)","CAMPUS LEÓN","100402 Dirección de Recursos Humanos",24,"2C.6.2 Derechos de autor",null,null,null,null,"Departamento de Gestión y Dirección de Empresas CGT"]
[null,null,null,"Programa Editorial Universitario","Departamento de Física CLE","100403 Dirección de Recursos Financieros",25,"2C.6.3 Regalías",null,null,null,null,"División de Derecho, Política y Gobierno CGT"]
[null,null,null,"Sistema Bibliotecario de la Universidad","Departamento de Ingeniería Física CLE","100404 Dirección de Servicios y Tecnologías de la Información",26,"2C.7 Procedimientos penales",null,null,null,null,"Departamento de Derecho CGT"]
[null,null,null,"Sistema Universitario de Multimodalidad Educativa (SUME)","Departamento de Ingenierías Química, Electrónica y Biomédica CLE","100405 Dirección de Infraestructura",27,"2C.7.1 Averiguaciones previas",null,null,null,null,"Departamento de Gestión Pública CGT"]
[null,null,null,"Unidad de Apoyo al Desarrollo Educativo","Departamento de Psicología CLE","100406 Dirección de Red Médica",28,"2C.7.2 Causas penales",null,null,null,null,"Departamento de Estudios Políticos y de Gobierno"]
[null,null,null,null,"Departamento de Medicina y Nutrición CLE","100407 Dirección de Adquisiciones y Servicios",29,"2C.8 Procedimientos de investigación administrativa"]
[null,null,null,"Secretaría de Gestión y Desarrollo","Departamento de Investigaciones Médicas CLE",null,30,"2C.9 Procedimientos administrativos no jurisdiccionales",null,null,null,null,"CAMPUS LEÓN"]
[null,null,null,"Dirección de Infraestructura y Servicios Universitarios","Departamento de Ciencias Aplicadas CLE","100408 Procuraduría Universitaria (Defensoría de los Derechos Humanos en el Entorno Universitario)",31,"2C.9.1 Revisiones fiscales",null,null,null,null,"División de Ciencias e Ingenierías CLE"]
[null,null,null,"Dirección de la Red Médica","Departamento de Enfermería CLE",null,32,"2C.9.2 Inspecciones",null,null,null,null,"Departamento de Física CLE"]
[null,null,null,"Dirección de Planeación","Departamento de Enfermería Gto","200101 Rectoría del Campus Guanajuato",33,"2C.9.3 Importaciones",null,null,null,null,"Departamento de Ingeniería Física CLE"]
[null,null,null,"Dirección de Recursos Financieros","Departamento de Estudios Sociales  CLE","200201 División de Ciencias Sociales y Humanidades CGT",34,"2C.10 Pedimentos y requerimientos no contenciosos",null,null,null,null,"Departamento de Ingenierías Química, Electrónica y Biomédica CLE"]
[null,null,null,"Dirección de Recursos Humanos","Departamento de Gestión Pública CLE","200202 Departamento de Filosofía CGT",35,"2C.10.1 Pedimentos y requerimientos del Ministerio Publico",null,null,null,null,"División de Ciencias de la Salud CLE"]
[null,null,null,"Dirección de Servicios y Tecnologías de la Información","Departamento de Estudios Culturales CLE","200203 Departamento de Educación CGT",36,"2C.10.2 Pedimentos y requerimientos juridiccionales",null,null,null,null,"Departamento de Psicología CLE"]
[null,null,null,null,null,"200204 Departamento de Letras Hispánicas CGT",37,"2C.10.3 Solicitud de peritajes",null,null,null,null,"Departamento de Medicina y Nutrición CLE"]
[null,null,null,"Rectoría del Campus Guanajuato (RCGT)","CAMPUS IRAPUATO-SALAMANCA ","200205 Departamento de Historia CGT",38,"2C.11 Trámites migratorios y consulares",null,null,null,null,"Departamento de Investigaciones Médicas CLE"]
[null,null,null,"División de Ciencias Sociales y Humanidades CGT","CINUG","200206 Departamento de Lenguas CGT",39,"2C.12 Quejas, Observaciones y Recomendaciones",null,null,null,null,"Departamento de Ciencias Aplicadas CLE"]
[null,null,null,"División de Ciencias Naturales y Exactas CGT","Departamento de Agronomía CIS","200207 Departamento de Estudios Culturales",null,null,null,null,null,null,"Departamento de Enfermería CLE"]
[null,null,null,"División de Arquitectura, Arte y Diseño CGT","Departamento de Alimentos CIS","200301 División de Ciencias Naturales y Exactas CGT",null,"3C PLANEACIÓN, PRESUPUESTACIÓN, EVALUACIÓN Y ORGANIZACIÓN",null,null,null,null,"Departamento de Enfermería Gto"]
[null,null,null,"División de Ingenierías CGT","Departamento de Ingeniería Agrícola CIS","200302 Departamento de Ingeniería Química CGT",40,"3C.1 Normas  y  políticas  en  materia  de  planeación, presupuestación, evaluación y organización",null,null,null,null,"División de Ciencias Sociales y Humanidades CLE"]
[null,null,null,"División de Ciencias Económico Administrativas CGT","Departamento de Enfermería CIS","200303 Departamento de Química CGT",41,"3C.2 Programas y proyectos de planeación",null,null,null,null,"Departamento de Estudios Sociales  CLE"]
[null,null,null,"División de Derecho, Política y Gobierno CGT","Departamento de Ciencias Ambientales CIS","200304 Departamento de Biología CGT",42,"3C.3 Programas y proyectos de presupuestación",null,null,null,null,"Departamento de Gestión Pública CLE"]
[null,null,null,null,"Departamento de Veterinaria y Zootecnia","200305 Departamento de Farmacia CGT",43,"3C.4 Programas y proyectos de información y evaluación",null,null,null,null,"Departamento de Estudios Culturales CLE"]
[null,null,null,"Rectoría del Campus León (RCL)","Departamento de Ingeniería Mecánica CIS","200306 Departamento de Astronomía CGT",44,"3C.5 Programas y proyectos de organización"]
[null,null,null,"División de Ciencias e Ingenierías CLE","Departamento de Ingeniería Eléctrica CIS","200307 Departamento de Matemáticas CGT",45,"3C.6 Plan de Desarrollo Institucional",null,null,null,null,"CAMPUS IRAPUATO-SALAMANCA "]
[null,null,null,"División de Ciencias de la Salud CLE","Departamento de Ingeniería Electrónica","200308 Departamento de Enfermaería y Obstetricia CGT",46,"3C.6.1 Plan o programa de trabajo",null,null,null,null,"CINUG"]
[null,null,null,"División de Ciencias Sociales y Humanidades CLE","Departamento de Arte y Empresas CIS","200401 División de Arquitectura, Arte y Diseño CGT",47,"3C.6.2 Programa anual",null,null,null,null,"División de Ciencias de la Vida CIS"]
[null,null,null,null,"Departamento de Estudios Multidisciplinarios CIS","200402 Departamento de Artes Visuales CGT",48,"3C.6.3 Informes",null,null,null,null,"Departamento de Agronomía CIS"]
[null,null,null,"Rectoría del Campus Irapuato- Salamanca (RCIS)",null,"200403 Departamento de Arquitectura CGT",49,"3C.7 Información estadística",null,null,null,null,"Departamento de Alimentos CIS"]
[null,null,null,"CINUG","CAMPUS CELAYA-SALVATIERRA","200404 Departamento de Diseño CGT",50,"3C.7.1 Cuestionarios",null,null,null,null,"Departamento de Ingeniería Agrícola CIS"]
[null,null,null,"División de Ciencias de la Vida CIS","Departamento de Enfermería CCS","200405 Departamento de Música CGT",51,"3C.7.2 Análisis y Reportes",null,null,null,null,"Departamento de Enfermería CIS"]
[null,null,null,"División de Ingeniería CIS","Departamento de Enfermería Clínica CCS","200501 División de Ingenierías CGT",52,"3C.8 Programación presupuestal",null,null,null,null,"Departamento de Ciencias Ambientales CIS"]
[null,null,null,null,"Departamento de Ingeniería Agroindustrial","200502 Departamento de Ingeniería Civil CGT",53,"3C.9 Indicadores de desempeño, calidad y productividad",null,null,null,null,"Departamento de Veterinaria y Zootecnia"]
[null,null,null,"Rectoría del Campus Celaya-Salvatierra (RCCS)","Departamento de Estudios Sociales CCS","200503 Departamento de Ingeniería Geomática CGT",54,"3C.10 Dictamen técnico de estructuras administrativas",null,null,null,null,"División de Ingeniería CIS"]
[null,null,null,"División de Ciencias de la Salud CCS","Departamento de Finanzas y Administración CCS","200504 Departamento de Ingeniería en Minas, Metalurgia y Geología CGT",55,"3C.11 Integración    y  revisión  de  manuales,  normas, lineamientos, de procesos y procedimientos",null,null,null,null,"Departamento de Ingeniería Mecánica CIS"]
[null,null,null,"División de Ciencias Sociales CCS","Departamento de Estudios Culturales CCS","200601 División de Ciencias Económico Administrativas CGT",56,"3C.12 Programas de mejora administrativa",null,null,null,null,"Departamento de Ingeniería Eléctrica CIS"]
[null,null,null,null,null,"200602 Departamento de Estudios Organizacionales CGT",57,"3C.13 Certificación de calidad de procesos y servicios",null,null,null,null,"Departamento de Ingeniería Electrónica"]
[null,null,null,"Dirección del CNMS","N/A","200603 Departamento de Economía y Finanzas CGT",58,"3C.13.1 Organizacion Internacional de Normalizacion (ISO)",null,null,null,null,"Departamento de Arte y Empresas CIS"]
[null,null,null,"ENMS Celaya",null,"200604 Departamento de Gestión y Dirección de Empresas CGT",59,"3C.13.2 Certificación matriz de etapas",null,null,null,null,"Departamento de Estudios Multidisciplinarios CIS"]
[null,null,null,"ENMS Guanajuato",null,"200701 División de Derecho, Política y Gobierno CGT",60,"3C.13.3 Certificación  de  procedimientos"]
[null,null,null,"ENMS Irapuato",null,"200702 Departamento de Derecho CGT",61,"3C.13.4 Reconocimiento al personal por calidad y eficacia",null,null,null,null,"CAMPUS CELAYA-SALVATIERRA"]
[null,null,null,"ENMS León",null,"200703 Departamento de Gestión Pública CGT",62,"3C.13.5 Premios por concepto de calidad institucional",null,null,null,null,"División de Ciencias de la Salud"]
[null,null,null,"ENMS Centro Histórico",null,"200704 Departamento de Estudios Políticos y de Gobierno",63,"3C.13.6 Acreditaciones",null,null,null,null,"Departamento de Enfermería CCS"]
[null,null,null,"ENMS Pénjamo",null,null,64,"3C.13.7 Buzón de quejas, sugerencias, felicitaciones",null,null,null,null,"Departamento de Enfermería Clínica CCS"]
[null,null,null,"ENMS Salamanca",null,"300101 Rectoría Campus León",65,"3C.14 Desconcentración y descentralización de funciones académico-administrativas",null,null,null,null,"Departamento de Ingeniería Agroindustrial"]
[null,null,null,"ENMS Salvatierra",null,"300201 División de Ciencias e Ingenierías CLE",null,null,null,null,null,null,"División de Ciencias Sociales (CCS)"]
[null,null,null,"ENMS Silao",null,"300202 Departamento de Física CLE",null,"4C RECURSOS HUMANOS",null,null,null,null,"Departamento de Estudios Sociales CCS"]
[null,null,null,"ENMS Moroleón",null,"300203 Departamento de Ingenieróa Física CLE",66,"4C.1 Programas y proyectos en materia de recursos humanos",null,null,null,null,"Departamento de Finanzas y Administración CCS"]
[null,null,null,null,null,"300204 Departamento de Ingenierías Química, Electrónica y Biomédica CLE",67,"4C.2 Expedientes de personal",null,null,null,null,"Departamento de Estudios Culturales CCS"]
[null,null,null,"Contraloría General - OIC",null,"300301 División de Ciencias de la Salud CLE",68,"4C.3 Expedientes de registro y control de plazas",null,null,null,null,"Otro"]
[null,null,null,"Defensoría de los Derechos Humanos en el Entorno Universitario",null,"300302 Departamento de Psicología CLE",69,"4C.4 Nómina institucional"]
[null,null,null,"Junta Directiva",null,"300303 Departamento de Medicina y Nutrición CLE",70,"4C.5 Reclutamiento y selección"]
[null,null,null,"Patronato de la Universidad de Guanajuato",null,"300304 Departamento de Investigaciones Médicas CLE",71,"4C.5.1 Convocatorias y concursos"]
[null,null,null,null,null,"300305 Departamento de Ciencias Aplicadas CLE",72,"4C.6 Incidencias del personal"]
[null,null,null,null,null,"300306 Departamento de Enfermería CLE",73,"4C.7 Descuentos"]
[null,null,null,null,null,"300307 Departamento de Enfermería Gto",74,"4C.8 Estímulos"]
[null,null,null,null,null,"300401 División de Ciencias Sociales y Humanidades CLE",75,"4C.9 Concursos de oposición"]
[null,null,null,null,null,"300402 Departamento de Estudios Sociales  CLE",76,"4C.10 Prestaciones  "]
[null,null,null,null,null,"300403 Departamento de Gestión Pública CLE",77,"4C.11 Jubilaciones"]
[null,null,null,null,null,"300404 Departamento de Estudios Culturales CLE",78,"4C.11.1 Programa de retiro voluntario"]
[null,null,null,null,null,null,79,"4C.12 Asuntos laborales"]
[null,null,null,null,null,"400101 Rectoría del Campus Irapuato- Salamanca",80,"4C.12.1 Clima Organizacional"]
[null,null,null,null,null,"400102 CINUG",81,"4C.13 Expedición de constancias y credenciales"]
[null,null,null,null,null,"400201 División de Ciencias de la Vida CIS",82,"4C.14 Honorarios por servicios profesionales"]
[null,null,null,null,null,"400202 Departamento de Agronomía CIS",83,"4C.15 Asociaciones Sindicales"]
[null,null,null,null,null,"400203 Departamento de Alimentos CIS"]
[null,null,null,null,null,"400204 Departamento de Ingeniería Agrícola CIS",null,"5C RECURSOS FINANCIEROS"]
[null,null,null,null,null,"400205 Departamento de Enfermería CIS",84,"5C.1 Programas y proyectos en materia de Recursos Financieros y Contables"]
[null,null,null,null,null,"400206 Departamento de Ciencias Ambientales CIS",85,"5C.2 Egresos"]
[null,null,null,null,null,"400207 Departamento de Veterinaria y Zootecnia",86,"5C.3 Ingresos"]
[null,null,null,null,null,"400301 División de Ingeniería CIS",87,"5C.3.1 Autogenerados"]
[null,null,null,null,null,"400302 Departamento de Ingeniería Mecánica CIS",88,"5C.4 Estados Financieros"]
[null,null,null,null,null,"400303 Departamento de Ingeniería Eléctrica CIS",89,"5C.5 Libros Contables"]
[null,null,null,null,null,"400304 Departamento de Ingeniería Electrónica",90,"5C.6 Registro y control de pólizas de egresos"]
[null,null,null,null,null,"400305 Departamento de Arte y Empresas CIS",91,"5C.7 Registro y control de pólizas de ingresos"]
[null,null,null,null,null,"400306 Departamento de Estudios Multidisciplinarios CIS",92,"5C.8 Pólizas de diario"]
[null,null,null,null,null,null,93,"5C.9 Auxiliares de cuentas"]
[null,null,null,null,null,"500101 Rectoría del Campus Celaya-Salvatierra",94,"5C.10 Conciliaciones"]
[null,null,null,null,null,"500201 División de Ciencias de la Salud CCS",95,"5C.11 Asignación y optimización de recursos financieros"]
[null,null,null,null,null,"500202 Departamento de Enfermería CCS",96,"5C.13 Estado del ejercicio del presupuesto"]
[null,null,null,null,null,"500203 Departamento de Enfermería Clínica CCS",97,"5C.14 Transferencias de presupuesto"]
[null,null,null,null,null,"500204 Departamento de Ingeniería Agroindustrial",98,"5C.15 Ampliaciones del presupuesto"]
[null,null,null,null,null,"500301 Departamento de Estudios Sociales CCS",99,"5C.16 Aportaciones a capital"]
[null,null,null,null,null,"500302 Departamento de Estudios Sociales CCS",100,"5C.17 Créditos concedidos"]
[null,null,null,null,null,"500303 Departamento de Finanzas y Administración CCS",101,"5C.18 Cuentas por liquidar"]
[null,null,null,null,null,"500304 Departamento de Estudios Culturales",102,"5C.19 Garantías, fianzas y depósitos"]
[null,null,null,null,null,null,103,"5C.20 Compras directas"]
[null,null,null,null,null,"600101 Dirección del CNMS",104,"5C.21 Control de cheques"]
[null,null,null,null,null,"600201 ENMS Celaya",105,"5C.22 Caja y bancos"]
[null,null,null,null,null,"600301 ENMS Guanajuato",106,"5C.23 Fondo fijo y revolvente"]
[null,null,null,null,null,"600401 ENMS Irapuato",107,"5C.24 Inversiones en valores"]
[null,null,null,null,null,"600501 ENMS León",108,"5C.25 Fideicomisos"]
[null,null,null,null,null,"600601 ENMS Centro Histórico",109,"5C.26 Cuenta anual"]
[null,null,null,null,null,"600701 Pénjamo",110,"5C.27 Catálogos contables"]
[null,null,null,null,null,"600801 Salamanca"]
[null,null,null,null,null,"600901 Salvatierra",null,"6C RECURSOS MATERIALES Y OBRAS"]
[null,null,null,null,null,"601001 San Luis de la Paz",111,"6C.1 Programas y proyectos referentes a Recursos Materiales, Obras, Conservación y Mantenimiento"]
[null,null,null,null,null,"601101 Silao",112,"6C.2 Adquisición, arrendamiento y servicios"]
[null,null,null,null,null,"601201 Moroleón",113,"6C.3 Expediente de obras"]
[null,null,null,null,null,null,114,"6C.4 Seguros y fianzas"]
[null,null,null,null,null,null,115,"6C.5 Calidad  en  materia  de  obras,  conservación  y equipamiento"]
[null,null,null,null,null,null,116,"6C.6 Precios unitarios en obras y servicios"]
[null,null,null,null,null,null,117,"6C.7 Asesoría técnica en materia de obras"]
[null,null,null,null,null,null,118,"6C.8 Conservación y mantenimiento de la infraestructura física"]
[null,null,null,null,null,null,119,"6C.9 Registro y control de proveedores y contratistas"]
[null,null,null,null,null,null,120,"6C.10 Registro y control del inventario de activo fijo"]
[null,null,null,null,null,null,121,"6C.11 Inventario físico y control de bienes muebles"]
[null,null,null,null,null,null,122,"6C.12 Inventario físico y control de bienes inmuebles"]
[null,null,null,null,null,null,123,"6C.13 Almacenamiento, control y abastecimiento de bienes y materiales"]
[null,null,null,null,null,null,124,"6C.14 Control de calidad de bienes e insumos"]
[null,null,null,null,null,null,125,"6C.15 Control y seguimiento de obras y remodelaciones"]
[null,null,null,null,null,null,126,"6C.16 Dictámenes de comités y subcomités  de adquisiciones, arrendamientos y servicios"]
[null,null,null,null,null,null,127,"6C.17 Dictámenes del comité de enajenación de bienes muebles e inmuebles"]
[null,null,null,null,null,null,128,"6C.18 Dictámenes del comité de obra"]
[]
[null,null,null,null,null,null,null,"7C SERVICIOS GENERALES"]
[null,null,null,null,null,null,129,"7C.1 Programas y proyectos en materia de servicios generales"]
[null,null,null,null,null,null,130,"7C.2 Servicios médicos"]
[null,null,null,null,null,null,131,"7C.3 Servicios básicos"]
[null,null,null,null,null,null,132,"7C.4 Servicios de seguridad y vigilancia"]
[null,null,null,null,null,null,133,"7C.5 Servicios de limpieza, higiene y fumigación"]
[null,null,null,null,null,null,134,"7C.6 Servicios de transporte y movilidad"]
[null,null,null,null,null,null,135,"7C.7 Cervicios de telefonía, telefonía celular y radiolocalización"]
[null,null,null,null,null,null,136,"7C.8 Servicios de correspondencia y mensajería"]
[null,null,null,null,null,null,137,"7C.9 Mantenimiento,  conservación  e  instalación  de mobiliario"]
[null,null,null,null,null,null,138,"7C.10 Mantenimiento, conservación e instalación de equipo de cómputo"]
[null,null,null,null,null,null,139,"7C.11 Control del parque vehicular"]
[null,null,null,null,null,null,140,"7C.12 Control de combustible"]
[null,null,null,null,null,null,141,"7C.13 Control y servicios en auditorios, salas, museos y áreas deportivas"]
[null,null,null,null,null,null,142,"7C.14 Programas y proyectos de Protección Civil"]
[null,null,null,null,null,null,143,"7C.14.1 Capacitación y adiestramiento en materia de protección civil"]
[null,null,null,null,null,null,144,"7C.14.2 Dictamen de los estudios de análisis de riesgo"]
[null,null,null,null,null,null,145,"7C.14.3 Asesorías en materia de protección civil"]
[]
[null,null,null,null,null,null,null,"8C TECNOLOGÍAS Y SERVICIOS DE LA INFORMACIÓN"]
[null,null,null,null,null,null,146,"8C.1 Programas y proyectos en materia de telecomunicaciones"]
[null,null,null,null,null,null,147,"8C.2 Desarrollo e infraestructura de telecomunicaciones"]
[null,null,null,null,null,null,148,"8C.3 Desarrollo e infraestructura de la página web de la Universidad de Guanajuato"]
[null,null,null,null,null,null,149,"8C.4 Desarrollo de redes de comunicación de voz y datos"]
[null,null,null,null,null,null,150,"8C.6 Control de uso de licencias y usuarios de software y hardware"]
[null,null,null,null,null,null,151,"8C.7 Asesoría en tecnologías de información y comunicación"]
[null,null,null,null,null,null,152,"8C.8 Programas y proyectos en materia de informática"]
[null,null,null,null,null,null,153,"8C.9 Desarrollo informático"]
[null,null,null,null,null,null,154,"8C.10 Seguridad informática"]
[null,null,null,null,null,null,155,"8C.11 Análisis, desarrollo y programación de sistemas"]
[null,null,null,null,null,null,156,"8C.12 Automatización de procesos"]
[null,null,null,null,null,null,157,"8C.13 Control y desarrollo del equipo informático"]
[null,null,null,null,null,null,158,"8C.14 Desarrollo, actualización  y  mantenimiento del sitio web"]
[null,null,null,null,null,null,159,"8C.15 Programas y proyectos referentes a servicios de información"]
[null,null,null,null,null,null,160,"8C.16 Gestión documental"]
[null,null,null,null,null,null,161,"8C.16.1 Acuses, documentación para conocimiento, copias simples "]
[null,null,null,null,null,null,162,"8C.17 Administración de archivos"]
[null,null,null,null,null,null,163,"8C.18 Administración de bibliotecas"]
[null,null,null,null,null,null,164,"8C.19 Administración de otros centros de documentación"]
[null,null,null,null,null,null,165,"8C.20 Administración y preservación de acervos digitales"]
[null,null,null,null,null,null,166,"8C.21 Procesos técnicos en los servicios de información"]
[null,null,null,null,null,null,167,"8C.22 Acceso y reserva en los servicios de información"]
[null,null,null,null,null,null,168,"8C.23 Productos para la divulgación de servicios"]
[null,null,null,null,null,null,169,"8C.24 Servicios y productos en internet e intranet"]
[]
[null,null,null,null,null,null,null,"9C COMUNICACIÓN SOCIAL"]
[null,null,null,null,null,null,170,"9C.1 Programas y proyectos de comunicación social"]
[null,null,null,null,null,null,171,"9C.2 Publicaciones e impresos institucionales"]
[null,null,null,null,null,null,172,"9C.3 Material multimedia"]
[null,null,null,null,null,null,173,"9C.4 Publicidad institucional"]
[null,null,null,null,null,null,174,"9C.5 Entrevistas para medios"]
[null,null,null,null,null,null,175,"9C.6 Boletines informativos para medios"]
[null,null,null,null,null,null,176,"9C.7 Inserciones y anuncios en medios"]
[null,null,null,null,null,null,177,"9C.8 Actos y eventos institucionales"]
[null,null,null,null,null,null,178,"9C.9 Servicios de comunicación electrónica"]
[]
[null,null,null,null,null,null,null,"10C AUDITORÍA"]
[null,null,null,null,null,null,179,"10C.1 Programas y proyectos en materia de control y auditoría"]
[null,null,null,null,null,null,180,"10C.2 Auditoría"]
[null,null,null,null,null,null,181,"10C.3 Requerimientos  de  información"]
[null,null,null,null,null,null,182,"10C.4 Quejas, denuncias y felicitaciones"]
[null,null,null,null,null,null,183,"10C.5 Responsabilidades,  inconformidades  y  registro patrimonial"]
[null,null,null,null,null,null,184,"10C.6 Declaraciones de situación patrimonial"]
[null,null,null,null,null,null,185,"10C.7 Actas de entrega – recepción"]
[null,null,null,null,null,null,186,"10C.8 Libros blancos"]
[]
[null,null,null,null,null,null,null,"11C TRANSPARENCIA Y ACCESO A LA INFORMACIÓN"]
[null,null,null,null,null,null,187,"11C.1 Programas y proyectos en materia de acceso a la información"]
[null,null,null,null,null,null,188,"11C.2 Programas y proyectos en materia de transparencia"]
[null,null,null,null,null,null,189,"11C.3 Solicitudes de acceso a la información"]
[null,null,null,null,null,null,190,"11C.4 Portal de transparencia"]
[null,null,null,null,null,null,191,"11C.5 Cuadro de Clasificiación Archivística y Catálogo de Disposición Documental"]
[null,null,null,null,null,null,192,"11C.6 Índices de clasificación de la Información reservada"]
[null,null,null,null,null,null,193,"11C.7 Índices de clasificación de la Información confidencial"]
[null,null,null,null,null,null,194,"11C.8 Protección de datos personales"]
[null,null,null,null,null,null,195,"11C.9 Expedientes de resoluciones de recursos"]
[null,null,null,null,null,null,196,"11C.10 Dictámenes del Comité de Información"]
[]
[null,null,null,null,null,null,null,"1S DOCENCIA"]
[null,null,null,null,null,null,197,"1S.1 Disposiciones en materia de docencia"]
[null,null,null,null,null,null,198,"1S.2 Programas y proyectos en materia de docencia"]
[null,null,null,null,null,null,199,"1S.2.1 Politicas para la distribucion de materiales educativos"]
[null,null,null,null,null,null,200,"1S.2.2 Material didáctico y de trabajo"]
[null,null,null,null,null,null,201,"1S.3 Planes y programas de estudio (Nivel Medio Superior, Superior, Posgrado)"]
[null,null,null,null,null,null,202,"1S.4 Incorporación de planes de estudio"]
[null,null,null,null,null,null,203,"1S.5 Programas de estancias y movilidad estudiantil"]
[null,null,null,null,null,null,204,"1S.5.1 Estadías profesionales"]
[null,null,null,null,null,null,205,"1S.5.2 Movilidad academica nacional"]
[null,null,null,null,null,null,206,"1S.5.3 Movilidad  academica  internacional"]
[null,null,null,null,null,null,207,"1S.6 Programas de cooperación docente"]
[null,null,null,null,null,null,208,"1S.7 Programas y proyectos de prácticas académicas"]
[null,null,null,null,null,null,209,"1S.8 Educación continua (cursos, talleres, diplomados,  seminarios…)"]
[null,null,null,null,null,null,210,"1S.9 Becas"]
[null,null,null,null,null,null,211,"1S.10 Tutorías"]
[null,null,null,null,null,null,212,"1S.11 Expedientes de profesores"]
[null,null,null,null,null,null,213,"1S.12 Programas y proyectos de apoyo a la docencia"]
[null,null,null,null,null,null,214,"1S.13 Convocatorias y premios académicos"]
[null,null,null,null,null,null,215,"1S.14 Actas de calificaciones"]
[null,null,null,null,null,null,216,"1S.15 Academias y Colegios de profesores"]
[null,null,null,null,null,null,217,"1S.16 Organización y Supervisión Académica"]
[null,null,null,null,null,null,218,"1S.16.1 Actividades y reportes en laboratorio"]
[null,null,null,null,null,null,219,"1S.16.2 Descarga academica"]
[]
[null,null,null,null,null,null,null,"2S INVESTIGACIÓN"]
[null,null,null,null,null,null,220,"2S.1 Programas de investigación"]
[null,null,null,null,null,null,221,"2S.2 Proyectos de investigación"]
[null,null,null,null,null,null,222,"2S.3 Programas y proyectos de apoyo a la investigación"]
[null,null,null,null,null,null,223,"2S.4 Programas de vinculación, colaboración y asesorías"]
[null,null,null,null,null,null,224,"2S.5 Premios y distinciones a la investigación"]
[null,null,null,null,null,null,225,"2S.6 Becas y proyectos de investigación"]
[]
[null,null,null,null,null,null,null,"3S CONTROL ESCOLAR"]
[null,null,null,null,null,null,226,"3S.1 Disposiciones generales en materia de administración educativa"]
[null,null,null,null,null,null,227,"3S.2 Proceso de Admisión"]
[null,null,null,null,null,null,228,"3S.2.1 Convocatorias"]
[null,null,null,null,null,null,229,"3S.2.2 Fichas para examen de Admisión"]
[null,null,null,null,null,null,230,"3S.3 Expedientes de alumnos"]
[null,null,null,null,null,null,231,"3S.4 Revalidación, certificación y/o equivalencia de estudios"]
[null,null,null,null,null,null,232,"3S.5 Planes de Estudio "]
[null,null,null,null,null,null,233,"3S.5.1 Nivel Medio Superior"]
[null,null,null,null,null,null,234,"3S.5.2 Nivel Superior"]
[null,null,null,null,null,null,235,"3S.5.3 Posgrado"]
[null,null,null,null,null,null,236,"3S.6 Credencialización "]
[null,null,null,null,null,null,237,"3S.7 Constancias"]
[null,null,null,null,null,null,238,"3S.8 Acreditación Escolar"]
[null,null,null,null,null,null,239,"3S.8.1 Listas de asistencia"]
[null,null,null,null,null,null,240,"3S.8.2 Exámenes ordinarios"]
[null,null,null,null,null,null,241,"3S.8.3 Revisión de exámenes"]
[null,null,null,null,null,null,242,"3S.8.4 Exámenes a título de suficiencia"]
[null,null,null,null,null,null,243,"3S.8.5 Recursamiento"]
[null,null,null,null,null,null,244,"3S.8.6 Mejores promedios"]
[null,null,null,null,null,null,245,"3S.8.7 Baja Temporal"]
[null,null,null,null,null,null,246,"3S.8.8 Baja Definitiva (Deserción)"]
[null,null,null,null,null,null,247,"3S.9 Ingreso"]
[null,null,null,null,null,null,248,"3S.9.1 Programas de inducción y semana de inducción de alumnos de nuevo ingreso"]
[null,null,null,null,null,null,249,"3S.9.2 Solicitud nuevo ingreso a posgrado"]
[null,null,null,null,null,null,250,"3S.9.3 Carta de no cupo"]
[null,null,null,null,null,null,251,"3S.9.4 Ficha medica (Nuevo ingreso)"]
[null,null,null,null,null,null,252,"3S.10 Egresados"]
[null,null,null,null,null,null,253,"3S.10.1 Padrón de Egresados"]
[null,null,null,null,null,null,254,"3S.10.2 Bolsa de Empleo"]
[null,null,null,null,null,null,255,"3S.10.3 Colocación de egresados"]
[null,null,null,null,null,null,256,"3S.11 Titulación"]
[null,null,null,null,null,null,257,"3S.11.1 Titulacion profesional - designacion de jurado para examen profesional o de grado"]
[null,null,null,null,null,null,258,"3S.11.2 Registro de títulos"]
[null,null,null,null,null,null,259,"3S.12 Becas educativas para alumnos"]
[null,null,null,null,null,null,260,"3S.12.1 Institucionales"]
[null,null,null,null,null,null,261,"3S.12.2 Becas nacionales"]
[null,null,null,null,null,null,262,"3S.12.3 Becas internacionales"]
[null,null,null,null,null,null,263,"3S.12.4 Becas de organismos privados"]
[null,null,null,null,null,null,264,"3S.13 Servicio Social"]
[null,null,null,null,null,null,265,"3S.13.1 Servicio Social ordinario"]
[null,null,null,null,null,null,266,"3S.13.2 Servico Social Profesional"]
[]
[null,null,null,null,null,null,null,"4S DIFUSIÓN Y EXTENSIÓN CULTURAL"]
[null,null,null,null,null,null,267,"4S.1 Programas y proyectos en materia de difusión y extensión de la cultura"]
[null,null,null,null,null,null,268,"4S.2 Expedientes de actividades culturales"]
[null,null,null,null,null,null,269,"4S.3 Programas de extensión universitaria"]
[null,null,null,null,null,null,270,"4S.4 Programas de extensión artística y cultural"]
[null,null,null,null,null,null,271,"4S.5 Expedientes de producción y fomento editorial"]
[null,null,null,null,null,null,272,"4S.6 Programas de desarrollo deportivo"]
[null,null,null,null,null,null,273,"4S.7 Programas de recreación universitaria"]
[]
[null,null,null,null,null,null,null,"5S GOBIERNO"]
[null,null,null,null,null,null,274,"5S.1 Mensajes de autoridades"]
[null,null,null,null,null,null,275,"5S.2 Sesiones de órganos colegiados"]
[null,null,null,null,null,null,276,"5S.3 Dictámenes"]
[null,null,null,null,null,null,277,"5S.4 Nombramientos y designaciones"]
[null,null,null,null,null,null,278,"5S.5 Elecciones Universitarias: Proceso de organización e informe"]
[null,null,null,null,null,null,279,"5S.6 Resolución de conflictos entre autoridades universitarias"]
[null,null,null,null,null,null,280,"5S.7 Recomendaciones"]
[null,null,null,null,null,null,281,"5S.8 Procedimientos disciplinarios y defensa de los derechos universitarios"]
[null,null,null,null,null,null,282,"5S.9 Premios, distinciones y  reconocimientos"]
[null,null,null,null,null,null,283,"5S.9.1 Otorgados por la Universidad de Guanajuato"]
[null,null,null,null,null,null,284,"5S.9.2 Recibidos por la Universidad de Guanajuato"]